Workbook

Sheet Tabla 1
B2: Hipótesis básicas del Escenario en la Actualización del Programa de Estabilidad 2015-2018
B3: Variación anual en %, salvo indicación en contrario
C4: 2014 | D4: 2015 (F) | E4: 2016 (F) | F4: 2017 (F) | G4: 2018 (F)
B5: Tipos de interés a corto plazo (euribor a tres meses) | C5: 0.21 | D5: 0.02 | E5: 0.02 | F5: 0.1 | G5: 0.2
B6: Tipos de interés a largo (deuda pública a 10 años, España) | C6: 2.7 | D6: 1.3 | E6: 1.4 | F6: 1.1 | G6: 1.1
B7: Tipo de cambio (dólares/euro) | C7: 1.3 | D7: 1.11 | E7: 1.1 | F7: 1.1 | G7: 1.1
B8: Tipo de cambio efectivo nominal zona euro (% variación) | C8: 2.1 | D8: -6.18 | E8: -0.47 | F8: 0 | G8: 0
B9: Crecimiento del PIB Mundial, excluida la UE | C9: 3.7 | D9: 4 | E9: 4.4 | F9: 4.5 | G9: 4.6
B10: Crecimiento del PIB de la UE | C10: 1.3 | D10: 1.7 | E10: 2.1 | F10: 2.3 | G10: 2.4
B11: Volumen de importaciones mundiales excluida la UE | C11: 2.1 | D11: 3.9 | E11: 5.2 | F11: 5.5 | G11: 6
B12: Mercados españoles de exportación | C12: 2.4 | D12: 3.8 | E12: 4.9 | F12: 5.2 | G12: 5.4
B13: Precio del petróleo (Brent, dólares/barril) | C13: 99.4 | D13: 61.5 | E13: 68.8 | F13: 68.8 | G13: 68.8
B14: (F) Previsión.
B15: Fuentes: Comisión Europea y Ministerio de Economía y Competitividad.

Sheet Tabla 2
A1: Previsiones de Organismos Internacionales
A2: (variación % sobre al año anterior, salvo indicación)
C3: 2014 | D3: 2015 | E3: 2016 | F3: 2017 | G3: 2018
A4: BCE (Marzo 2015) | B4: PIB mundial (ex área del euro) | C4: 3.6 | D4: 3.8 | E4: 4.2 | F4: 4.1
B5: PIB del área del euro | C5: 0.9 | D5: 1.5 | E5: 1.9 | F5: 2.1
B6: Importaciones de bienes y servicios (ex. área del euro) | C6: 2.9 | D6: 3.9 | E6: 5.1 | F6: 5.4
B7: Precios del petróleo tipo Brent (USD por barril) | C7: 99.3 | D7: 58.5 | E7: 66.8 | F7: 70.7
B8: Euribor a tres meses (%) | C8: 0.2 | D8: 0.1 | E8: 0.1 | F8: 0.2
B9: Tipos de interés de la deuda pública del área del euro a 10 años (%) | C9: 2 | D9: 1.2 | E9: 1.4 | F9: 1.6
B10: Tipo de cambio USD/EUR (nivel) | C10: 1.33 | D10: 1.14 | E10: 1.13 | F10: 1.13
B11: Tipo de cambio efectivo del euro | C11: 0.6 | D11: -7.9 | E11: -0.2 | F11: 0
A12: FMI (WEO Abril 2015) | B12: PIB mundial | C12: 3.4 | D12: 3.5 | E12: 3.8 | F12: 3.84 | G12: 3.87
B13: PIB del área del euro | C13: 0.9 | D13: 1.5 | E13: 1.6 | F13: 1.6 | G13: 1.557
B14: PIB de la UE | C14: 1.4 | D14: 1.8 | E14: 1.9 | F14: 1.9 | G14: 1.87
B15: Comercio de bienes y servicios | C15: 3.4 | D15: 3.7 | E15: 4.7 | F15: 5.086 | G15: 5.094
B16: Precios del petróleo Brent (USD por barril) | C16: 98.943 | D16: 61.548 | E16: 68.853 | F16: 71.973 | G16: 74.474
B17: Libor a tres meses (%) | C17: 0.21 | D17: 0.02 | E17: 0.02
A18: Comisión Europea (Feb 2015) | B18: PIB mundial | C18: 3.3 | D18: 3.6 | E18: 4
B19: PIB del área del euro | C19: 0.8 | D19: 1.3 | E19: 1.9
B20: PIB de la UE | C20: 1.3 | D20: 1.7 | E20: 2.1
B21: Importaciones de bienes y servicios | C21: 2.6 | D21: 4.3 | E21: 5.3
A22: OCDE (Nov 2014) | B22: PIB OCDE | C22: 1.8 | D22: 2.3 | E22: 2.6
B23: PIB del área del euro | C23: 0.8 | D23: 1.1 | E23: 2.7
B24: Comercio de bienes y servicios | C24: 3 | D24: 4.5 | E24: 5.5

Sheet Tabla 3
A1: Evolución cíclica
A2: % PIB, salvo indicación en contrario
C3: 2014 | D3: 2015 | E3: 2016 | F3: 2017 | G3: 2018
A4: Crecimiento real del PIB (% variación)
B5: APE 2015-2018 | C5: 1.389112156 | D5: 2.923112393 | E5: 2.922501746 | F5: 2.963861859 | G5: 2.958655041
A7: Crecimiento del PIB potencial (% variación, promedio)
B8: CE | C8: -0.2371674922 | D8: -0.05888758779 | E8: 0.3934447736 | F8: 0.5771242337 | G8: 0.7414764104
B9: OCDE | C9: 0.5536255352 | D9: 0.732736507 | E9: 0.9435563971 | F9: 1.04 | G9: 1.1
B10: FMI | C10: 0.5554026351 | D10: 0.8665119308 | E10: 0.9534582811 | F10: 1.05 | G10: 1.1
B11: APE 2015-2018 | C11: 0.1118270191 | D11: 0.3836626065 | E11: 0.6982268661 | F11: 0.9765022599 | G11: 1.198145895
A13: Output gap (% PIB potencial)
B14: CE | C14: -6.110375 | D14: -3.308936701 | E14: -0.8731481054 | F14: 1.479173944 | G14: 3.712588264
B15: OCDE | C15: -5.986962756 | D15: -3.942702896 | E15: -2.059550091 | F15: -0.194705515 | G15: 1.640147242
B16: FMI | C16: -5.021 | D16: -3.084441953 | E16: -1.194155583 | F16: 0.6772025275 | G16: 2.528084723
B17: APE 2015-2018 | C17: -8.194824141 | D17: -5.872388117 | E17: -3.793248402 | F17: -1.899764206 | G17: -0.19314833
A19: Fuentes: APE 2015-2018, OCDE Economic Outlook November 2014, FMI WEO April 2015, CE Winter Forecast 2015
A20: Notas: (i) Las áreas sombreadas indican supuestos adicionales sobre el crecimiento del producto potencial. (ii) Se asume que el crecimiento observado previsto no afecta al potencial dentro del horizonte del programa.

Sheet Gráfico 1
A1: 1970 2018 | B1: .excel_last | C1: F184FAAA@AMECO
A2: .DESC | C2: Spain: Output Gap (% of Potential GDP)
A3: .T1 | C3: 1965
A4: .TN | C4: 2016
A5: .SOURCE | C5: EC
A6: .LSOURCE | C6: European Commission
A7: .AGG | C7: None
A8: .DTLM | C8: Feb-05-2015 11:08
A9: .FRQ | C9: Annual | J9: APE 2015-2018
A10: .DATA_TYPE | C10: % | G10: CE | H10: FMI | I10: OCDE | J10: Brecha de producción (% PIB potencial) | K10: Crecimiento del PIB (%)
A11: 1970 | B11: 25933 | C11: -1.2145985 | F11: 1970 | G11: =C11 -> -1.2145985
A12: 1971 | B12: 26298 | C12: -1.9587693 | F12: 1971 | G12: =C12 -> -1.9587693
A13: 1972 | B13: 26664 | C13: 0.49272 | F13: 1972 | G13: 0.49272
A14: 1973 | B14: 27029 | C14: 2.7159793 | F14: 1973 | G14: 2.7159793
A15: 1974 | B15: 27394 | C15: 3.3504853 | F15: 1974 | G15: 3.3504853
A16: 1975 | B16: 27759 | C16: -0.0457305 | F16: 1975 | G16: -0.0457305
A17: 1976 | B17: 28125 | C17: -0.2389911 | F17: 1976 | G17: -0.2389911
A18: 1977 | B18: 28490 | C18: -0.424373 | F18: 1977 | G18: -0.424373
A19: 1978 | B19: 28855 | C19: -1.2709453 | F19: 1978 | G19: -1.2709453
A20: 1979 | B20: 29220 | C20: -3.1130252 | F20: 1979 | G20: -3.1130252
A21: 1980 | B21: 29586 | C21: -3.4423679 | F21: 1980 | G21: -3.4423679 | H21: -3.273
A22: 1981 | B22: 29951 | C22: -4.4757637 | F22: 1981 | G22: -4.4757637 | H22: -5.338
A23: 1982 | B23: 30316 | C23: -4.2099686 | F23: 1982 | G23: -4.2099686 | H23: -5.798
A24: 1983 | B24: 30681 | C24: -3.9283313 | F24: 1983 | G24: -3.9283313 | H24: -5.999
A25: 1984 | B25: 31047 | C25: -3.3168817 | F25: 1984 | G25: -3.3168817 | H25: -6.238
A26: 1985 | B26: 31412 | C26: -2.8946095 | F26: 1985 | G26: -2.8946095 | H26: -6.019 | I26: -6.576
A27: 1986 | B27: 31777 | C27: -2.4423167 | F27: 1986 | G27: -2.4423167 | H27: -5.896 | I27: -5.071 | L27: Brechas de producción del escenario macroeconómico
A28: 1987 | B28: 32142 | C28: 0.0420535 | F28: 1987 | G28: 0.0420535 | H28: -3.37 | I28: -1.924 | L28: de acuerdo a las metodologías de la CE, la OCDE y la propia de la APE
A29: 1988 | B29: 32508 | C29: 1.423555 | F29: 1988 | G29: 1.423555 | H29: -1.163 | I29: 0.535
A30: 1989 | B30: 32873 | C30: 2.3696239 | F30: 1989 | G30: 2.3696239 | H30: 0.864 | I30: 2.241
A31: 1990 | B31: 33238 | C31: 2.6289408 | F31: 1990 | G31: 2.6289408 | H31: 1.859 | I31: 2.908
A32: 1991 | B32: 33603 | C32: 1.8195979 | F32: 1991 | G32: 1.8195979 | H32: 1.624 | I32: 2.518
A33: 1992 | B33: 33969 | C33: -0.2086787 | F33: 1992 | G33: -0.2086787 | H33: -0.205 | I33: 0.767
A34: 1993 | B34: 34334 | C34: -3.3266069 | F34: 1993 | G34: -3.3266069 | H34: -4.066 | I34: -2.305
A35: 1994 | B35: 34699 | C35: -3.2923335 | F35: 1994 | G35: -3.2923335 | H35: -4.314 | I35: -2
A36: 1995 | B36: 35064 | C36: -3.0136029 | F36: 1995 | G36: -3.0136029 | H36: -2.894 | I36: -1.837
A37: 1996 | B37: 35430 | C37: -2.6094165 | F37: 1996 | G37: -2.6094165 | H37: -4.473 | I37: -1.976
A38: 1997 | B38: 35795 | C38: -1.40014 | F38: 1997 | G38: -1.40014 | H38: -3.547 | I38: -1.3
A39: 1998 | B39: 36160 | C39: 0.1041861 | F39: 1998 | G39: 0.1041861 | H39: -2.28 | I39: -0.294
A40: 1999 | B40: 36525 | C40: 1.3714212 | F40: 1999 | G40: 1.3714212 | H40: -1.256 | I40: 0.695
A41: 2000 | B41: 36891 | C41: 3.1927558 | F41: 2000 | G41: 3.1927558 | H41: -0.14 | I41: 2.353 | J41: 3.872533805 | K41: ='[3]Resumen Escenario 22.04'!Z14 -> 5.289105485
A42: 2001 | B42: 37256 | C42: 3.5094158 | F42: 2001 | G42: 3.5094158 | H42: 0.41 | I42: 2.794 | J42: 4.448440263 | K42: ='[3]Resumen Escenario 22.04'!Z15 -> 4.001083128
A43: 2002 | B43: 37621 | C43: 2.8642356 | F43: 2002 | G43: 2.8642356 | H43: -0.079 | I43: 2.191 | J43: 3.826950978 | K43: ='[3]Resumen Escenario 22.04'!Z16 -> 2.879799376
A44: 2003 | B44: 37986 | C44: 2.4425583 | F44: 2003 | G44: 2.4425583 | H44: -0.282 | I44: 1.875 | J44: 3.493288153 | K44: ='[3]Resumen Escenario 22.04'!Z17 -> 3.187559364
A45: 2004 | B45: 38352 | C45: 2.2345753 | F45: 2004 | G45: 2.2345753 | H45: -0.156 | I45: 1.701 | J45: 3.268471416 | K45: ='[3]Resumen Escenario 22.04'!Z18 -> 3.166755601
A46: 2005 | B46: 38717 | C46: 2.4351598 | F46: 2005 | G46: 2.4351598 | H46: 0.441 | I46: 2.195 | J46: 3.45595064 | K46: ='[3]Resumen Escenario 22.04'!Z19 -> 3.723039072
A47: 2006 | B47: 39082 | C47: 3.1384065 | F47: 2006 | G47: 3.1384065 | H47: 1.823 | I47: 3.443 | J47: 3.977045792 | K47: ='[3]Resumen Escenario 22.04'!Z20 -> 4.174126153 | L47: Fuentes: APE, OCDE Economic Outlook November 2014 y CE Winter Forecast 2015
A48: 2007 | B48: 39447 | C48: 3.1964017 | F48: 2007 | G48: 3.1964017 | H48: 2.875 | I48: 4.602 | J48: 3.879488716 | K48: ='[3]Resumen Escenario 22.04'!Z21 -> 3.768947123
A49: 2008 | B49: 39813 | C49: 1.4124615 | F49: 2008 | G49: 1.4124615 | H49: 2.02 | I49: 3.49 | J49: 1.740737628 | K49: ='[3]Resumen Escenario 22.04'!Z22 -> 1.115924907
A50: 2009 | B50: 40178 | C50: -3.3301515 | F50: 2009 | G50: -3.3301515 | H50: -2.29 | I50: -1.374 | J50: -3.631433678 | K50: ='[3]Resumen Escenario 22.04'!Z23 -> -3.573798962
A51: 2010 | B51: 40543 | C51: -4.4055535 | F51: 2010 | G51: -4.4055535 | H51: -2.475 | I51: -1.986 | J51: -4.952775459 | K51: ='[3]Resumen Escenario 22.04'!Z24 -> 0.01380775601
A52: 2011 | B52: 40908 | C52: -5.5111979 | F52: 2011 | G52: -5.5111979 | H52: -3.112 | I52: -2.988 | J52: -6.349759756 | K52: ='[3]Resumen Escenario 22.04'!Z25 -> -0.6176255947
A53: 2012 | B53: 41274 | C53: -7.1677944 | F53: 2012 | G53: -7.1677944 | H53: -4.942 | I53: -5.229 | J53: -8.46043549 | K53: ='[3]Resumen Escenario 22.04'!Z26 -> -2.08873689
A54: 2013 | B54: 41639 | C54: -7.6656012 | F54: 2013 | G54: -7.6656012 | H54: -5.802 | I54: -6.811 | J54: -9.399685542 | K54: ='[3]Resumen Escenario 22.04'!Z27 -> -1.229958603
A55: 2014 | B55: 42004 | C55: -6.110375 | F55: 2014 | G55: -6.110375 | H55: -5.021 | I55: -6.129 | J55: -8.194824141 | K55: ='[3]Resumen Escenario 22.04'!Z28 -> 1.389112156
A56: 2015 | B56: 42369 | C56: -3.935419 | F56: 2015 | G56: -3.308936701 | H56: -3.084441953 | I56: -3.942702896 | J56: -5.872388117 | K56: ='[3]Resumen Escenario 22.04'!Z29 -> 2.923112393
A57: 2016 | B57: 42735 | C57: -1.899218 | F57: 2016 | G57: -0.938992499 | H57: -1.259786749 | I57: -2.124606425 | J57: -3.793248402 | K57: ='[3]Resumen Escenario 22.04'!Z30 -> 2.922501746
A58: 2017 | B58: 43100 | C58: -1.266146 | F58: 2017 | G58: 1.410987005 | H58: 0.6095544568 | I58: -0.2617677242 | J58: -1.899764206 | K58: ='[3]Resumen Escenario 22.04'!Z31 -> 2.963861859
A59: 2018 | B59: 43465 | C59: -0.633073 | F59: 2018 | G59: 3.640306892 | H59: 2.456628879 | I59: 1.569310236 | J59: -0.19314833 | K59: ='[3]Resumen Escenario 22.04'!Z32 -> 2.958655041

Sheet Gráfico 2
B2: 2015 | C2: Seleccione el año
B5: ="Previsiones de PIB : año "&$B$2 -> Previsiones de PIB : año 2015
B28: Fuente: INE, MINECO y estimaciones de AIReF.
B31: ="Previsiones de la cap/nec de financiación del gobierno : año "&$B$2 -> Previsiones de la cap/nec de financiación del gobierno : año 2015
B54: Fuente: INE, MINECO y estimaciones de AIReF.

Sheet MasterPIB (hidden)
M4: PIB
M5: ='Gráfico 2'!B2 -> 2015
B6: fila | C6: Panelista | E6: =F6-1 -> 2012 | F6: 2013 | G6: =H6-1 -> 2014 | H6: =M5 -> 2015 | I6: =H6+1 -> 2016 | J6: =I6+1 -> 2017 | K6: 2018
B7: 4 | C7: 1 | D7: Panelista 1 | G7: =IF(ISNUMBER(H7),G$42,NA()) -> 1.38879934 | H7: =IF($M$4="PIB",IF(ISNUMBER(INDIRECT($M$5&"!b"&B7)),INDIRECT($M$5&"!b"&B7),NA()),IF(ISNUMBER(INDIRECT($M$5&"!AJ"&B7)),INDIRECT($M$5&"!AJ"&B7),NA())) -> 2.5 | I7: =IF($M$4="PIB",IF(ISNUMBER(INDIRECT($M$5&"!c"&B7)),INDIRECT($M$5&"!c"&B7),NA()),IF(ISNUMBER(INDIRECT($M$5&"!AK"&B7)),INDIRECT($M$5&"!AK"&B7),NA())) -> 2.2
B8: =B7+1 -> 5 | C8: 2 | D8: Panelista 2 | G8: 1.38879934 | H8: 2.667003961 | I8: =IF($M$4="PIB",IF(ISNUMBER(INDIRECT($M$5&"!c"&B8)),INDIRECT($M$5&"!c"&B8),NA()),IF(ISNUMBER(INDIRECT($M$5&"!AK"&B8)),INDIRECT($M$5&"!AK"&B8),NA())) -> 2.668260275 | M8: =IF(M4="PIB",$D$52,$D$59)&" : año "&$M$5 -> Previsiones PIB : año 2015 | V8: =IF(M4="PIB",$D$52,$D$59)&" : año "&$M$5 -> Previsiones PIB : año 2015
B9: =B8+1 -> 6 | C9: 3 | D9: Panelista 3 | G9: 1.38879934 | H9: 2.7 | I9: 2.6
B10: 7 | C10: 4 | D10: Panelista 4 | G10: 1.38879934 | H10: 2.5 | I10: 2.7
B11: 8 | C11: 5 | D11: Panelista 5 | G11: 1.38879934 | H11: 2.5 | I11: 2.5
B12: 9 | C12: 6 | D12: Panelista 6 | G12: 1.38879934 | H12: 2.515305384 | I12: 2.680570526
B13: 10 | C13: 7 | D13: Panelista 7 | G13: 1.38879934 | H13: 2 | I13: 2.2
B14: 11 | C14: 8 | D14: Panelista 8 | G14: 1.38879934 | H14: 2.8 | I14: 2.6
B15: 12 | C15: 9 | D15: Panelista 9 | G15: 1.38879934 | H15: 2.2
B16: 13 | C16: 10 | D16: Panelista 10 | G16: 1.38879934 | H16: 2.999264646 | I16: 2.793001176
B17: 14 | C17: 11 | D17: Panelista 11 | G17: 1.38879934 | H17: 2.2 | I17: 2.5
B18: 15 | C18: 12 | D18: Panelista 12 | G18: 1.38879934 | H18: 2.8 | I18: 2.8
B19: 16 | C19: 13 | D19: Panelistas
B20: 17 | C20: 14 | D20: Panelista 14 | G20: 1.38879934 | H20: 3.022552419 | I20: 2.755465004
B21: 18 | C21: 15 | D21: Panelista 15 | G21: 1.38879934 | H21: 2.6 | I21: 2.8
B22: 19 | C22: 16 | D22: Panelista 16 | G22: 1.38879934 | H22: 2.547383206 | I22: 2.256230139
B23: 20 | C23: 17 | D23: Panelista 17 | G23: 1.38879934 | H23: 2.813205442 | I23: 2.745989277
B24: 21 | C24: 18 | D24: Panelista 18 | G24: 1.38879934 | H24: 2.529112691 | I24: 2.576623084 | M24: Fuente: INE, MINECO y estimaciones de AIReF. | V24: Fuente: INE, MINECO y estimaciones de AIReF.
B25: 22 | C25: 19 | D25: Panelista 19 | G25: 1.38879934 | H25: 2.8 | I25: 2.6
B26: 23 | C26: 20 | D26: Panelista 20 | M26: =IF(M4="PIB",$D$52,$D$59)&" : año "&$M$5 -> Previsiones PIB : año 2015
B27: 24 | C27: 21 | D27: Panelista 21 | G27: 1.38879934 | H27: 2.6 | I27: 2.3
B28: 25 | C28: 22 | D28: Panelista 22 | G28: 1.38879934 | H28: 2.5 | I28: 2.5
B29: 26 | C29: 23 | D29: Panelista 23 | G29: 1.38879934 | H29: 2.2 | I29: 1.9
B30: 27 | C30: 24 | D30: Panelista 24 | G30: 1.38879934 | H30: 2.2 | I30: 2.1
B31: 28 | C31: 25 | D31: Panelista 25 | G31: 1.38879934 | H31: 2.1 | I31: 1.8
B32: 29 | C32: 26 | D32: Panelista 26 | G32: 1.38879934 | H32: 2 | I32: 2.2
B33: 30 | C33: 27 | D33: Panelista 27 | G33: 1.38879934 | H33: 2 | I33: 1.6
B34: 31 | C34: 28 | D34: Panelista 28
B35: 32 | C35: 29 | D35: Panelista 29
B36: 33 | C36: 30 | D36: Panelista 30
B37: =B36+6 -> 39 | D37: Gobierno | G37: 1.38879934 | H37: 2.923112393 | I37: 2.854136116 | J37: =IF($M$4="PIB",IF(ISNUMBER(INDIRECT($M$5&"!d"&B37)),INDIRECT($M$5&"!d"&B37),NA()),IF(ISNUMBER(INDIRECT($M$5&"!AL"&B37)),INDIRECT($M$5&"!AL"&B37),NA())) -> 2.963069889 | K37: =IF($M$4="PIB",IF(ISNUMBER(INDIRECT($M$5&"!e"&B37)),INDIRECT($M$5&"!e"&B37),NA()),IF(ISNUMBER(INDIRECT($M$5&"!AM"&B37)),INDIRECT($M$5&"!AM"&B37),NA())) -> 2.956078432
B38: 40 | D38: Banco de España | G38: 1.38879934 | H38: 2.7 | I38: 2.6
B39: =B38+1 -> 41 | D39: =IF(ISNUMBER(I39),"Comisión Europea","") -> Comisión Europea | G39: =IF(ISNUMBER(H39),G$42,"") -> 1.38879934 | H39: 2.3 | I39: 2.5
B40: 42 | D40: FMI | G40: 1.38879934 | H40: 2.455 | I40: 2.047 | J40: =IF($M$4="PIB",IF(ISNUMBER(INDIRECT($M$5&"!d"&$B40)),INDIRECT($M$5&"!d"&$B40),NA()),IF(ISNUMBER(INDIRECT($M$5&"!AL"&$B40)),INDIRECT($M$5&"!AL"&$B40),NA())) -> 1.768 | K40: =IF($M$4="PIB",IF(ISNUMBER(INDIRECT($M$5&"!e"&$B40)),INDIRECT($M$5&"!e"&$B40),NA()),IF(ISNUMBER(INDIRECT($M$5&"!AM"&$B40)),INDIRECT($M$5&"!AM"&$B40),NA())) -> 1.748
B41: 43 | D41: OCDE | G41: =IF(ISNUMBER(H41),G$42,NA()) -> 1.38879934 | H41: 1.7 | I41: 1.9
B42: 44 | D42: Media panelistas | E42: =IF($M$4="PIB",VLOOKUP($M$5,$D$53:$G$57,2,FALSE),VLOOKUP($M$5,$D$60:$G$64,2,FALSE)) -> -2.089821385 | F42: =IF($M$4="PIB",VLOOKUP($M$5,$D$53:$G$57,3,FALSE),VLOOKUP($M$5,$D$60:$G$64,3,FALSE)) -> -1.224300882 | G42: =IF($M$4="PIB",VLOOKUP($M$5,$D$53:$G$57,4,FALSE),VLOOKUP($M$5,$D$60:$G$64,4,FALSE)) -> 1.38879934 | H42: 2.49175311 | I42: 2.432339145
B43: 45 | D43: Consenso Panel FUNCAS | G43: =IF(ISNUMBER(H43),G$42,NA()) -> 1.38879934 | H43: 2.594101542 | I43: 2.586831734 | M43: Fuente: INE, MINECO y estimaciones de AIReF.
B44: 34 | D44: MAX | G44: =IF(ISNUMBER(H44),G$42,NA()) -> 1.38879934 | H44: 3.022552419 | I44: 2.8
B45: 35 | D45: MIN | G45: 1.38879934 | H45: 2 | I45: 1.6
D46: Intervalo panelistas | E46: =NA() ->  | F46: =NA() ->  | G46: =G44-G45 -> 0 | H46: =H44-H45 -> 1.022552419 | I46: 1.2
B47: 36 | D47: Primer cuartil | G47: =IF(ISNUMBER(H47),G$42,NA()) -> 1.38879934 | H47: =IF($M$4="PIB",IF(ISNUMBER(INDIRECT($M$5&"!b"&B47)),INDIRECT($M$5&"!b"&B47),NA()),IF(ISNUMBER(INDIRECT($M$5&"!AJ"&B47)),INDIRECT($M$5&"!AJ"&B47),NA())) -> 2.2 | I47: 2.2
B48: 37 | D48: Tercer cuartil | G48: =IF(ISNUMBER(H48),G$42,NA()) -> 1.38879934 | H48: =IF($M$4="PIB",IF(ISNUMBER(INDIRECT($M$5&"!b"&B48)),INDIRECT($M$5&"!b"&B48),NA()),IF(ISNUMBER(INDIRECT($M$5&"!AJ"&B48)),INDIRECT($M$5&"!AJ"&B48),NA())) -> 2.7 | I48: 2.685427895
D52: Previsiones PIB
D53: =D54-1 -> 2011 | E53: 0.864 | F53: -3.722 | G53: -0.147
D54: 2012 | E54: -3.74 | F54: -0.07 | G54: 0.71
D55: =D56-1 -> 2013 | E55: -0.322 | F55: 0.417 | G55: -1.419
D56: 2014 | E56: 0.052 | F56: -1.643 | G56: -1.22
D57: 2015 | E57: -2.089821385 | F57: -1.224300882 | G57: 1.38879934
D59: Capacidad/Necesidad de Financiación del Gobierno
D60: =D61-1 -> 2011 | E60: -9.418712046 | F60: -10.32101354 | G60: -6.794919085
D61: 2012 | E61: -10.32101354 | F61: -6.794919085 | G61: -5.833047543
D62: =D63-1 -> 2013 | E62: -6.794919085 | F62: -5.833047543 | G62: -4.747258472
D63: 2014 | E63: -5.833047543 | F63: -4.747258472 | G63: -3.347480547
D64: 2015 | E64: -4.747258472 | F64: -3.347480547 | G64: -2.747523551
D66: PIB
D67: =D59 -> Capacidad/Necesidad de Financiación del Gobierno

Sheet MasterDEF (hidden)
M4: Capacidad/Necesidad de Financiación del Gobierno
M5: ='Gráfico 2'!B2 -> 2015
B6: fila | C6: Panelista | E6: =F6-1 -> 2012 | F6: 2013 | G6: =H6-1 -> 2014 | H6: =M5 -> 2015 | I6: =H6+1 -> 2016 | J6: =I6+1 -> 2017 | K6: 2018
B7: 4 | C7: 1 | D7: Panelista 1 | G7: =IF(ISNUMBER(H7),G$42,NA()) -> -5.833047543 | H7: =IF($M$4="PIB",IF(ISNUMBER(INDIRECT($M$5&"!b"&B7)),INDIRECT($M$5&"!b"&B7),NA()),IF(ISNUMBER(INDIRECT($M$5&"!AJ"&B7)),INDIRECT($M$5&"!AJ"&B7),NA())) -> -4.5 | I7: =IF($M$4="PIB",IF(ISNUMBER(INDIRECT($M$5&"!c"&B7)),INDIRECT($M$5&"!c"&B7),NA()),IF(ISNUMBER(INDIRECT($M$5&"!AK"&B7)),INDIRECT($M$5&"!AK"&B7),NA())) -> -4
B8: =B7+1 -> 5 | C8: 2 | D8: Panelista 2 | G8: -5.833047543 | H8: -4.212679636 | I8: =IF($M$4="PIB",IF(ISNUMBER(INDIRECT($M$5&"!c"&B8)),INDIRECT($M$5&"!c"&B8),NA()),IF(ISNUMBER(INDIRECT($M$5&"!AK"&B8)),INDIRECT($M$5&"!AK"&B8),NA())) -> -2.847527424 | M8: =IF(M4="PIB",$D$52,$D$59)&" : año "&$M$5 -> Capacidad/Necesidad de Financiación del Gobierno : año 2015 | V8: =IF(M4="PIB",$D$52,$D$59)&" : año "&$M$5 -> Capacidad/Necesidad de Financiación del Gobierno : año 2015
B9: =B8+1 -> 6 | C9: 3 | D9: Panelista 3
B10: 7 | C10: 4 | D10: Panelista 4
B11: 8 | C11: 5 | D11: Panelista 5 | G11: -5.833047543 | H11: -4.2 | I11: -2.8
B12: 9 | C12: 6 | D12: Panelista 6 | G12: -5.833047543 | H12: -4.3 | I12: -3
B13: 10 | C13: 7 | D13: Panelista 7 | G13: -5.833047543 | H13: -4.9 | I13: -3.8
B14: 11 | C14: 8 | D14: Panelista 8 | G14: -5.833047543 | H14: -4.3 | I14: -3.5
B15: 12 | C15: 9 | D15: Panelista 9 | G15: -5.833047543 | H15: -4.2
B16: 13 | C16: 10 | D16: Panelista 10 | G16: -5.833047543 | H16: -4.392499816 | I16: -3.26451726
B17: 14 | C17: 11 | D17: Panelista 11 | G17: -5.833047543 | H17: -4.5 | I17: -3.5
B18: 15 | C18: 12 | D18: Panelista 12 | G18: -5.833047543 | H18: -4.4 | I18: -3
B19: 16 | C19: 13 | D19: Panelistas
B20: 17 | C20: 14 | D20: Panelista 14
B21: 18 | C21: 15 | D21: Panelista 15 | G21: -5.833047543 | H21: -4.2 | I21: -2.9
B22: 19 | C22: 16 | D22: Panelista 16 | G22: -5.833047543 | H22: -4.791067135 | I22: -3.298320184
B23: 20 | C23: 17 | D23: Panelista 17 | G23: -5.833047543 | H23: -4.3 | I23: -2.8
B24: 21 | C24: 18 | D24: Panelista 18 | G24: -5.833047543 | H24: -4.2 | I24: -2.8 | M24: Fuente: INE, MINECO y estimaciones de AIReF. | V24: Fuente: INE, MINECO y estimaciones de AIReF.
B25: 22 | C25: 19 | D25: Panelista 19 | G25: -5.833047543 | H25: -4.5 | I25: -3.4
B26: 23 | C26: 20 | D26: Panelista 20 | M26: =IF(M4="PIB",$D$52,$D$59)&" : año "&$M$5 -> Capacidad/Necesidad de Financiación del Gobierno : año 2015
B27: 24 | C27: 21 | D27: Panelista 21
B28: 25 | C28: 22 | D28: Panelista 22
B29: 26 | C29: 23 | D29: Panelista 23
B30: 27 | C30: 24 | D30: Panelista 24
B31: 28 | C31: 25 | D31: Panelista 25
B32: 29 | C32: 26 | D32: Panelista 26
B33: 30 | C33: 27 | D33: Panelista 27
B34: 31 | C34: 28 | D34: Panelista 28
B35: 32 | C35: 29 | D35: Panelista 29
B36: 33 | C36: 30 | D36: Panelista 30
B37: =B36+6 -> 39 | D37: Gobierno | G37: -5.833047543 | H37: -4.190665531 | I37: -2.760436107 | J37: =IF($M$4="PIB",IF(ISNUMBER(INDIRECT($M$5&"!d"&B37)),INDIRECT($M$5&"!d"&B37),NA()),IF(ISNUMBER(INDIRECT($M$5&"!AL"&B37)),INDIRECT($M$5&"!AL"&B37),NA())) -> -1.441001173 | K37: =IF($M$4="PIB",IF(ISNUMBER(INDIRECT($M$5&"!e"&B37)),INDIRECT($M$5&"!e"&B37),NA()),IF(ISNUMBER(INDIRECT($M$5&"!AM"&B37)),INDIRECT($M$5&"!AM"&B37),NA())) -> -0.3160332162
B38: 40 | D38: Banco de España | G38: -5.833047543 | H38: -4.5 | I38: -3.9
B39: =B38+1 -> 41 | D39: =IF(ISNUMBER(I39),"Comisión Europea","") -> Comisión Europea | G39: =G42 -> -5.833047543 | H39: -4.5 | I39: =IF($M$4="PIB",IF(ISNUMBER(INDIRECT($M$5&"!c"&B39)),INDIRECT($M$5&"!c"&B39),NA()),IF(ISNUMBER(INDIRECT($M$5&"!AK"&B39)),INDIRECT($M$5&"!AK"&B39),NA())) -> -3.7
B40: 42 | D40: FMI | G40: -5.833047543 | H40: -4.3 | I40: -2.854 | J40: =IF($M$4="PIB",IF(ISNUMBER(INDIRECT($M$5&"!d"&$B40)),INDIRECT($M$5&"!d"&$B40),NA()),IF(ISNUMBER(INDIRECT($M$5&"!AL"&$B40)),INDIRECT($M$5&"!AL"&$B40),NA())) -> -2.489 | K40: =IF($M$4="PIB",IF(ISNUMBER(INDIRECT($M$5&"!e"&$B40)),INDIRECT($M$5&"!e"&$B40),NA()),IF(ISNUMBER(INDIRECT($M$5&"!AM"&$B40)),INDIRECT($M$5&"!AM"&$B40),NA())) -> -2.039
B41: 43 | D41: OCDE | G41: =IF(ISNUMBER(H41),G$42,NA()) -> -5.833047543 | H41: -4.4 | I41: -3.3
B42: 44 | D42: Media panelistas | E42: =IF($M$4="PIB",VLOOKUP($M$5,$D$53:$G$57,2,FALSE),VLOOKUP($M$5,$D$60:$G$64,2,FALSE)) -> -10.32101354 | F42: =IF($M$4="PIB",VLOOKUP($M$5,$D$53:$G$57,3,FALSE),VLOOKUP($M$5,$D$60:$G$64,3,FALSE)) -> -6.794919085 | G42: =IF($M$4="PIB",VLOOKUP($M$5,$D$53:$G$57,4,FALSE),VLOOKUP($M$5,$D$60:$G$64,4,FALSE)) -> -5.833047543 | H42: -4.393083106 | I42: -3.207883205
B43: 45 | D43: Consenso Panel FUNCAS | G43: =IF(ISNUMBER(H43),G$42,NA()) -> -5.833047543 | H43: -4.393083106 | I43: -3.207883205 | M43: Fuente: INE, MINECO y estimaciones de AIReF.
B44: 34 | D44: MAX | G44: =IF(ISNUMBER(H44),G$42,NA()) -> -5.833047543 | H44: -4.2 | I44: -2.8
B45: 35 | D45: MIN | G45: -5.833047543 | H45: -4.9 | I45: -4
D46: Intervalo panelistas | E46: =NA() ->  | F46: =NA() ->  | G46: =G44-G45 -> 0 | H46: =H44-H45 -> 0.7 | I46: 1.2
B47: 36 | D47: Primer cuartil | G47: =IF(ISNUMBER(H47),G$42,NA()) -> -5.833047543 | H47: =IF($M$4="PIB",IF(ISNUMBER(INDIRECT($M$5&"!b"&B47)),INDIRECT($M$5&"!b"&B47),NA()),IF(ISNUMBER(INDIRECT($M$5&"!AJ"&B47)),INDIRECT($M$5&"!AJ"&B47),NA())) -> -4.5 | I47: -3.475
B48: 37 | D48: Tercer cuartil | G48: =IF(ISNUMBER(H48),G$42,NA()) -> -5.833047543 | H48: =IF($M$4="PIB",IF(ISNUMBER(INDIRECT($M$5&"!b"&B48)),INDIRECT($M$5&"!b"&B48),NA()),IF(ISNUMBER(INDIRECT($M$5&"!AJ"&B48)),INDIRECT($M$5&"!AJ"&B48),NA())) -> -4.206339818 | I48: -2.860645568
D52: Previsiones PIB
D53: =D54-1 -> 2011 | E53: 0.864 | F53: -3.722 | G53: -0.147
D54: 2012 | E54: -3.74 | F54: -0.07 | G54: 0.71
D55: =D56-1 -> 2013 | E55: -0.322 | F55: 0.417 | G55: -1.419
D56: 2014 | E56: 0.052 | F56: -1.643 | G56: -1.22
D57: 2015 | E57: -2.089821385 | F57: -1.224300882 | G57: 1.38879934
D59: Capacidad/Necesidad de Financiación del Gobierno
D60: =D61-1 -> 2011 | E60: -4.424358564 | F60: -10.9576714 | G60: -9.385121652
D61: 2012 | E61: -10.9576714 | F61: -9.385121652 | G61: -9.418712046
D62: =D63-1 -> 2013 | E62: -9.385121652 | F62: -9.418712046 | G62: -10.32101354
D63: 2014 | E63: -9.418712046 | F63: -10.32101354 | G63: -6.794919085
D64: 2015 | E64: -10.32101354 | F64: -6.794919085 | G64: -5.833047543
D66: PIB
D67: =D59 -> Capacidad/Necesidad de Financiación del Gobierno

Sheet Gráfico 3
B8: Errores del PIB | N8: Contribuciones a los errores de previsión oficial en el PIB
C9: 2011 | D9: 2012 | E9: =C9+1 -> 2012 | F9: =D9+1 -> 2013 | G9: =E9+1 -> 2013 | H9: 2014 | I9: 2014 | J9: 2015 | K9: 2015 | L9: 2016
B10: Error prev PIB | C10: =INDIRECT(C$31&"!B39")-INDIRECT(C$31&"!B46") -> 1.917186807 | D10: =INDIRECT(D$31&"!C39")-INDIRECT(D$31&"!C46") -> 4.389821385 | E10: =INDIRECT(E$31&"!B39")-INDIRECT(E$31&"!B46") -> 0.3898213851 | F10: =INDIRECT(F$31&"!C39")-INDIRECT(F$31&"!C46") -> 1.424300882 | G10: =INDIRECT(G$31&"!B39")-INDIRECT(G$31&"!B46") -> -0.07569911765 | H10: =INDIRECT(H$31&"!C39")-INDIRECT(H$31&"!C46") -> -0.88879934 | I10: =INDIRECT(I$31&"!B39")-INDIRECT(I$31&"!B46") -> -0.18879934 | J10: =INDIRECT(J$31&"!C39")-INDIRECT(J$31&"!C46") -> -1.054136116 | K10: =INDIRECT(K$31&"!B39")-INDIRECT(K$31&"!B46") -> -0.4085234682 | L10: =INDIRECT(L$31&"!C39")-INDIRECT(L$31&"!C46") -> -0.1517565868 | O10: 2011 | Q10: 2012 | S10: 2013 | U10: 2014
B11: Consumo Privado | C11: =INDIRECT(C$31&"!F39")-INDIRECT(C$31&"!F46") -> 2.929566628 | D11: =INDIRECT(D$31&"!G39")-INDIRECT(D$31&"!G46") -> 4.322796589 | E11: =INDIRECT(E$31&"!F39")-INDIRECT(E$31&"!F46") -> 1.522796589 | F11: =INDIRECT(F$31&"!G39")-INDIRECT(F$31&"!G46") -> 1.172084617 | G11: =INDIRECT(G$31&"!F39")-INDIRECT(G$31&"!F46") -> -0.2279153829 | H11: =INDIRECT(H$31&"!G39")-INDIRECT(H$31&"!G46") -> -2.422115026 | I11: =INDIRECT(I$31&"!F39")-INDIRECT(I$31&"!F46") -> -1.022115026 | J11: =INDIRECT(J$31&"!G39")-INDIRECT(J$31&"!G46") -> -1.5 | K11: =INDIRECT(K$31&"!F39")-INDIRECT(K$31&"!F46") -> -0.4270256783 | L11: =INDIRECT(L$31&"!G39")-INDIRECT(L$31&"!G46") -> -0.1902032515
B12: Consumo Público | C12: =INDIRECT(C$31&"!H39")-INDIRECT(C$31&"!H46") -> -1.046389802 | D12: =INDIRECT(D$31&"!I39")-INDIRECT(D$31&"!I46") -> 2.88667831 | E12: =INDIRECT(E$31&"!H39")-INDIRECT(E$31&"!H46") -> -4.31332169 | F12: =INDIRECT(F$31&"!I39")-INDIRECT(F$31&"!I46") -> -1.687295561 | G12: =INDIRECT(G$31&"!H39")-INDIRECT(G$31&"!H46") -> -1.487295561 | H12: =INDIRECT(H$31&"!I39")-INDIRECT(H$31&"!I46") -> -3.210617473 | I12: =INDIRECT(I$31&"!H39")-INDIRECT(I$31&"!H46") -> -1.410617473 | J12: =INDIRECT(J$31&"!I39")-INDIRECT(J$31&"!I46") -> -2 | K12: =INDIRECT(K$31&"!H39")-INDIRECT(K$31&"!H46") -> -1.015138877 | L12: =INDIRECT(L$31&"!I39")-INDIRECT(L$31&"!I46") -> -2.734775332
B13: Inversión | C13: =INDIRECT(C$31&"!J39")-INDIRECT(C$31&"!J46") -> 5.089102935 | D13: =INDIRECT(D$31&"!K39")-INDIRECT(D$31&"!K46") -> 10.96548478 | E13: =INDIRECT(E$31&"!J39")-INDIRECT(E$31&"!J46") -> -0.7345152199 | F13: =INDIRECT(F$31&"!K39")-INDIRECT(F$31&"!K46") -> 3.207710643 | G13: =INDIRECT(G$31&"!J39")-INDIRECT(G$31&"!J46") -> -3.392289357 | H13: =INDIRECT(H$31&"!K39")-INDIRECT(H$31&"!K46") -> -5.03864399 | I13: =INDIRECT(I$31&"!J39")-INDIRECT(I$31&"!J46") -> -3.63864399 | J13: =INDIRECT(J$31&"!K39")-INDIRECT(J$31&"!K46") -> -3.326568349 | K13: =INDIRECT(K$31&"!J39")-INDIRECT(K$31&"!J46") -> -2.641598066 | L13: =INDIRECT(L$31&"!K39")-INDIRECT(L$31&"!K46") -> 0.004299876716
B14: Exportaciones | C14: =INDIRECT(C$31&"!R39")-INDIRECT(C$31&"!R46") -> 0.8010358388 | D14: =INDIRECT(D$31&"!S39")-INDIRECT(D$31&"!S46") -> 6.72782062 | E14: =INDIRECT(E$31&"!R39")-INDIRECT(E$31&"!R46") -> 2.32782062 | F14: =INDIRECT(F$31&"!S39")-INDIRECT(F$31&"!S46") -> 2.601355244 | G14: =INDIRECT(G$31&"!R39")-INDIRECT(G$31&"!R46") -> -0.1986447558 | H14: =INDIRECT(H$31&"!S39")-INDIRECT(H$31&"!S46") -> 1.709684031 | I14: =INDIRECT(I$31&"!R39")-INDIRECT(I$31&"!R46") -> 0.8096840313 | J14: =INDIRECT(J$31&"!S39")-INDIRECT(J$31&"!S46") -> 0.6754300834 | K14: =INDIRECT(K$31&"!R39")-INDIRECT(K$31&"!R46") -> -0.4310050387 | L14: =INDIRECT(L$31&"!S39")-INDIRECT(L$31&"!S46") -> 1.233607817
B15: Importaciones | C15: =INDIRECT(C$31&"!T39")-INDIRECT(C$31&"!T46") -> 3.745552937 | D15: =INDIRECT(D$31&"!U39")-INDIRECT(D$31&"!U46") -> 10.38574898 | E15: =INDIRECT(E$31&"!T39")-INDIRECT(E$31&"!T46") -> 1.185748975 | F15: =INDIRECT(F$31&"!U39")-INDIRECT(F$31&"!U46") -> 1.726990521 | G15: =INDIRECT(G$31&"!T39")-INDIRECT(G$31&"!T46") -> -3.273009479 | H15: =INDIRECT(H$31&"!U39")-INDIRECT(H$31&"!U46") -> -5.050020038 | I15: =INDIRECT(I$31&"!T39")-INDIRECT(I$31&"!T46") -> -4.050020038 | J15: =INDIRECT(J$31&"!U39")-INDIRECT(J$31&"!U46") -> -1.274561113 | K15: =INDIRECT(K$31&"!T39")-INDIRECT(K$31&"!T46") -> -2.223633552 | L15: =INDIRECT(L$31&"!U39")-INDIRECT(L$31&"!U46") -> -0.2428819243
B17: Pesos
B18: Consumo Privado | C18: 0.5724321251 | D18: 0.5790397685 | E18: 0.5790397685 | F18: 0.5864734489 | G18: 0.5864734489 | H18: 0.5817024754 | I18: 0.5817024754 | J18: 0.5900384052 | K18: =J18 -> 0.5900384052 | L18: =K18 -> 0.5900384052
B19: Consumo Público | C19: 0.2051199348 | D19: 0.2043175191 | E19: 0.2043175191 | F19: 0.1960737182 | G19: 0.1960737182 | H19: 0.1946481874 | I19: 0.1946481874 | J19: 0.1915210479 | K19: =J19 -> 0.1915210479 | L19: 0.1915210479
B20: Inversión | C20: 0.2355003685 | D20: 0.2190726506 | E20: 0.2190726506 | F20: 0.2017908463 | G20: 0.2017908463 | H20: 0.1895685975 | I20: 0.1895685975 | J20: 0.1946539299 | K20: =J20 -> 0.1946539299 | L20: 0.1946539299
B21: Exportaciones | C21: 0.2551829406 | D21: 0.2879552507 | E21: 0.2879552507 | F21: 0.3031882622 | G21: 0.3031882622 | H21: 0.3155534286 | I21: 0.3155534286 | J21: 0.320253526 | K21: =J21 -> 0.320253526 | L21: 0.320253526
B22: Importaciones | C22: 0.268235369 | D22: 0.290385189 | E22: 0.290385189 | F22: 0.2875262757 | G22: 0.2875262757 | H22: 0.2814726888 | I22: 0.2814726888 | J22: 0.296466909 | K22: =J22 -> 0.296466909 | L22: 0.296466909
B24: Aportaciones | C24: =C9 -> 2011 | D24: =D9 -> 2012 | E24: 2012 | F24: 2013 | G24: 2013 | H24: 2014 | I24: 2014 | J24: 2015 | K24: 2015 | L24: 2016
B25: Consumo Privado | C25: =C11*C18 -> 1.676978051 | D25: =D11*D18 -> 2.503071136 | E25: 0.8817597841 | F25: 0.6873965078 | G25: -0.1336663207 | H25: -1.408950306 | I25: -0.5945668407 | J25: -0.8850576077 | K25: -0.2519615502 | L25: -0.1122272232
B26: Consumo Público | C26: =C12*C19 -> -0.2146354079 | D26: 0.5897989507 | E26: -0.881287187 | F26: -0.3308343143 | G26: -0.2916195706 | H26: -0.6249408716 | I26: -0.2745741343 | J26: -0.3830420958 | K26: -0.1944204614 | L26: -0.5237670373
B27: Inversión | C27: 1.198485616 | D27: 2.402237816 | E27: -0.1609121961 | F27: 0.6472866455 | G27: -0.6845329402 | H27: -0.9551686743 | I27: -0.6897726379 | J27: -0.6475296023 | K27: -0.5141974449 | L27: 0.000836987901
B28: Exportaciones | C28: 0.2044106809 | D28: 1.937311274 | E28: 0.6703081702 | F28: 0.7887003758 | G28: -0.06022675831 | H28: 0.5394966579 | I28: 0.2554985721 | J28: 0.2163088658 | K28: -0.1380308833 | L28: 0.3950672531
B29: Importaciones | C29: =-C15*C22 -> -1.004689774 | D29: =-D15*D22 -> -3.015867679 | E29: -0.3443239403 | F29: -0.4965551527 | G29: 0.9410762256 | H29: 1.421442719 | I29: 1.13997003 | J29: 0.3778651935 | K29: 0.659233766 | L29: 0.07200645333
B31: Previsión del | C31: 2011 | D31: 2011 | E31: =C31+1 -> 2012 | F31: =D31+1 -> 2012 | G31: 2013 | H31: 2013 | I31: 2014 | J31: 2014 | K31: 2015 | L31: 2015
C32: t | D32: t+1 | E32: t | F32: t+1 | G32: t | H32: t+1 | I32: t | J32: t+1 | K32: t | L32: t+1
B33: Check | C33: =SUM(C25:C29) -> 1.860549166 | D33: 4.416551497 | E33: 0.1655446309 | F33: 1.295994062 | G33: -0.2289693642 | H33: -1.028120476 | I33: -0.163445011 | J33: -1.321455247 | K33: -0.4393765738 | L33: -0.1680835661
B34: Discrepancia estadística | C34: =C10-C33 -> 0.05663764161 | D34: -0.02673011232 | E34: 0.2242767542 | F34: 0.1283068201 | G34: 0.1532702466 | H34: 0.1393211357 | I34: -0.02535432902 | J34: 0.2673191306 | K34: 0.03085310565 | L34: 0.0163269793 | N34: Fuente: INE, MINECO y estimaciones de AIREF
N35: Nota: Variación porcentual. El error de previsión se define como la diferencia entre la previsión y el valor realizado (en puntos porcentuales).
B37: Errores del déficit | N37: Errores de previsión en la capacidad/necesidad de financiación
B39: FMI | C39: =INDIRECT(C31&"!AJ42")-INDIRECT(C31&"!AJ46") -> 3.21057556 | D39: =INDIRECT(D31&"!Ak42")-INDIRECT(D31&"!Ak46") -> 4.989906267 | E39: =INDIRECT(E31&"!AJ42")-INDIRECT(E31&"!AJ46") -> 4.597598067 | F39: =INDIRECT(F31&"!Ak42")-INDIRECT(F31&"!Ak46") -> 1.39030687 | G39: =INDIRECT(G31&"!AJ42")-INDIRECT(G31&"!AJ46") -> 0.1889190845 | H39: =INDIRECT(H31&"!Ak42")-INDIRECT(H31&"!Ak46") -> -1.103952457 | I39: =INDIRECT(I31&"!AJ42")-INDIRECT(I31&"!AJ46") -> -0.0589524568 | J39: =INDIRECT(J31&"!Ak42")-INDIRECT(J31&"!Ak46") -> -0.6913344689 | K39: =INDIRECT(K31&"!AJ42")-INDIRECT(K31&"!AJ46") -> 0.433757408 | L39: =INDIRECT(L31&"!Ak42")-INDIRECT(L31&"!Ak46") -> 0.0107420882 | O39: 2011 | Q39: 2012 | S39: 2013 | U39: 2014
B40: Gobierno | C40: =INDIRECT(C31&"!AJ39")-INDIRECT(C31&"!AJ46") -> 3.44557556 | D40: =INDIRECT(D31&"!Ak39")-INDIRECT(D31&"!Ak46") -> 6.234906267 | E40: =INDIRECT(E31&"!AJ39")-INDIRECT(E31&"!AJ46") -> 5.318598067 | F40: =INDIRECT(F31&"!Ak39")-INDIRECT(F31&"!Ak46") -> 4.07730687 | G40: =INDIRECT(G31&"!AJ39")-INDIRECT(G31&"!AJ46") -> 0.4949190845 | H40: =INDIRECT(H31&"!Ak39")-INDIRECT(H31&"!Ak46") -> 0.3330475432 | I40: =INDIRECT(I31&"!AJ39")-INDIRECT(I31&"!AJ46") -> 0.3330475432 | J40: =INDIRECT(J31&"!Ak39")-INDIRECT(J31&"!Ak46") -> -0.009334468869 | K40: =INDIRECT(K31&"!AJ39")-INDIRECT(K31&"!AJ46") -> 0.5430918769 | L40: =INDIRECT(L31&"!Ak39")-INDIRECT(L31&"!Ak46") -> 0.104305981
B41: Consenso | C41: =INDIRECT(C31&"!AJ44")-INDIRECT(C31&"!AJ46") -> 3.023005286 | D41: =INDIRECT(D31&"!Ak44")-INDIRECT(D31&"!Ak46") -> 5.553955876 | E41: =INDIRECT(E31&"!AJ44")-INDIRECT(E31&"!AJ46") -> 4.85927844 | F41: =INDIRECT(F31&"!Ak44")-INDIRECT(F31&"!Ak46") -> 3.649941685 | G41: =INDIRECT(G31&"!AJ44")-INDIRECT(G31&"!AJ46") -> 1.107199204 | H41: =INDIRECT(H31&"!Ak44")-INDIRECT(H31&"!Ak46") -> 1.434239218 | I41: =INDIRECT(I31&"!AJ44")-INDIRECT(I31&"!AJ46") -> -0.06269743641 | J41: =INDIRECT(J31&"!Ak44")-INDIRECT(J31&"!Ak46") -> -0.8470660687 | K41: =INDIRECT(K31&"!AJ44")-INDIRECT(K31&"!AJ46") -> 0.3406743022 | L41: =INDIRECT(L31&"!Ak44")-INDIRECT(L31&"!Ak46") -> -0.3431411167
N61: Fuente: INE, MINECO y estimaciones de AIREF
N62: Nota: Variación porcentual. El error de previsión se define como la diferencia entre la previsión y el valor realizado (en puntos porcentuales).

Sheet 2011
B1: PIB | F1: Consumo | H1: Consumo | J1: Formac. bruta | L1: FBCF | N1: FBCF | P1: Demanda | R1: Exportaciones | T1: Importaciones | V1: Producción | X1: IPC | AB1: Costes | AD1: Empleo (4) | AF1: Paro (EPA) | AH1: Saldo B. Pagos c/c | AJ1: Saldo AA.PP.
F2: hogares | H2: público | J2: de capital fijo | L2: Equipo | N2: Construcción | P2: nacional | R2: bienes y serv. | T2: bienes y serv. | V2: industrial (IPI) | X2: (media anual) | AB2: laborales (3) | AF2: (% pob. activa) | AH2: (% del PIB) (5) | AJ2: (% del PIB)
B3: 2011 | C3: 2012 | D3: 2013 | E3: 2014 | F3: 2011 | G3: 2012 | H3: 2011 | I3: 2012 | J3: 2011 | K3: 2012 | L3: 2011 | M3: 2012 | N3: 2011 | O3: 2012 | P3: 2011 | Q3: 2012 | R3: 2011 | S3: 2012 | T3: 2011 | U3: 2012 | V3: 2011 | W3: 2012 | X3: 2011 | Y3: 2012 | Z3: 2013 | AA3: 2014 | AB3: 2011 | AC3: 2012 | AD3: 2011 | AE3: 2012 | AF3: 2011 | AG3: 2012 | AH3: 2011 | AI3: 2012 | AJ3: 2011 | AK3: 2012 | AL3: 2013 | AM3: 2014
A4: Analistas Financieros Internacionales (AFI) | B4: 0.8 | C4: 1.3 | F4: 0.6 | G4: 1.6 | H4: -1.3 | I4: -1.1 | J4: -3.2 | K4: 1.3 | L4: 1.7 | M4: 5 | N4: -6.6 | O4: -0.3 | P4: -0.7 | Q4: 1 | R4: 7.6 | S4: 5 | T4: 2 | U4: 3.5 | X4: 3.1 | Y4: 1.5 | AD4: -0.7 | AE4: 0.4 | AF4: 21 | AG4: 20.9 | AH4: -3.5 | AI4: -3.6 | AJ4: -6.8 | AK4: -5.3
A5: Banco Bilbao Vizcaya Argentaria (BBVA) | B5: 0.9 | C5: 1.9 | F5: 0.2 | G5: 1.2 | H5: -0.6 | I5: -0.3 | J5: -2.9 | K5: 3.4 | L5: 0.7 | M5: 5.5 | N5: -5.3 | O5: 2.3 | P5: -0.7 | Q5: 1.4 | R5: 9.1 | S5: 7 | T5: 2 | U5: 4.6 | X5: 1.9 | Y5: 1.3 | AB5: 2.2 | AC5: 2.6 | AD5: -0.3 | AE5: 0.9 | AF5: 20.6 | AG5: 20.1 | AH5: -3.1 | AI5: -2.8 | AJ5: -6 | AK5: -4.5
A6: Bankia
A7: CatalunyaCaixa | B7: 0.8 | C7: 1.6 | F7: 0.9 | G7: 1.3 | H7: -1.6 | I7: -0.4 | J7: -1.1 | K7: 1.9 | L7: 2.4 | M7: 4 | N7: -4.8 | O7: 0.8 | P7: -0.1 | Q7: 1.1 | R7: 7.2 | S7: 6.3 | T7: 3.7 | U7: 4.8 | X7: 3.2 | Y7: 1.6 | AD7: 0 | AE7: 0.4 | AF7: 20.5 | AG7: 20.4
A8: Cemex | B8: 0.6 | F8: 0.8 | H8: -2.6 | J8: -3.6 | L8: 0.5 | N8: -7.3 | P8: -0.9 | R8: 5.8 | T8: 0.9 | V8: 2.3 | X8: 3.1 | AD8: -0.1 | AF8: 20.5 | AH8: -3.6 | AJ8: -6
A9: Centro de Estudios Economía de Madrid (CEEM-URJC) | B9: 0.6588688254 | C9: 1.305988837 | F9: 0.6 | G9: 1 | H9: -1 | I9: -0.8 | J9: -2.353534822 | K9: 1.388539363 | L9: 2.5 | M9: 3.2 | N9: -4.9 | O9: 0.1 | P9: -0.3937867852 | Q9: 0.7023152694 | R9: 7.1 | S9: 6.8 | T9: 2.7 | U9: 4.6 | X9: 2.7 | Y9: 1.4 | AD9: -0.1 | AE9: 0.8 | AF9: 20.44602533 | AG9: 20 | AH9: -3.8 | AI9: -3.7 | AJ9: -6.5 | AK9: -5.1
A10: Centro de Predicción Económica (CEPREDE-UAM) | B10: 0.8 | C10: 1 | F10: 0.9 | G10: 1.3 | H10: -1.1 | I10: 0.6 | J10: -1.7 | K10: 2 | L10: 4 | M10: 5.1 | N10: -5.5 | O10: -0.6 | P10: 0 | Q10: 1.5 | R10: 7.9 | S10: 4.3 | T10: 4.2 | U10: 4.6 | V10: 1 | W10: 1.9 | X10: 2.1 | Y10: 2.1 | AB10: 0.4 | AC10: 1.2 | AD10: -0.1 | AE10: 0.6 | AF10: 20.4 | AG10: 20.1 | AH10: -3.7 | AI10: -4.7 | AJ10: -7.7 | AK10: -7.1
A11: CEOE
A12: ESADE | B12: 0.7 | F12: 1 | H12: -1 | J12: -2 | P12: -0.1 | R12: 4 | T12: 0.5 | X12: 1.2 | AF12: 20
A13: Fundación Cajas de Ahorros (FUNCAS) | B13: 0.8305220657 | C13: 1.437983135 | F13: 0.7469395989 | G13: 1.3346057 | H13: -1.193937785 | I13: -1.196638492 | J13: -4.528848613 | K13: -0.486253092 | L13: 1.321640787 | M13: 3.561812976 | N13: -9.335112598 | O13: -4.088491278 | P13: -0.5668304226 | Q13: 0.623594671 | R13: 7.334847433 | S13: 6.594111441 | T13: 1.816526406 | U13: 3.577553915 | V13: 3.6 | W13: 5 | X13: 3.5 | Y13: 1.7 | AB13: 0.6977736536 | AC13: 1.200593948 | AD13: -0.5220196383 | AE13: 0.4122501534 | AF13: 20.67893388 | AG13: 20.4708643 | AH13: -4.2 | AI13: -4.1 | AJ13: -6.500269582 | AK13: -4.885681941
A14: Instituto Complutense de Análisis Económico (ICAE-UCM) | B14: 0.7 | F14: 1 | H14: -1.2 | J14: -2.9 | L14: 2.6 | N14: -7.1 | P14: -0.3 | R14: 5.2 | T14: 1.3 | V14: 1.4 | X14: 3.3 | Y14: 2.4 | AB14: 1.1 | AD14: -0.3 | AF14: 20.4 | AH14: -3.6 | AJ14: -6.5
A15: Instituto de Estudios Económicos (IEE) | B15: 0.5 | F15: 0.7 | H15: -1 | J15: -1.9 | L15: 3 | N15: -5 | P15: -0.4 | R15: 5.5 | T15: 2 | V15: 1.6 | X15: 3 | AB15: 1.4 | AD15: -0.5 | AF15: 20.3 | AH15: -4 | AJ15: -6.8
A16: Instituto de Macroeconomía y Finanzas (Universidad CJC)
A17: Instituto Flores de Lemus (IFL-UC3M) | B17: 0.6434325308 | C17: 1.505757911 | F17: 0.9264217772 | G17: 1.700782111 | H17: -1.229540413 | I17: -0.4820061442 | J17: -4.140985957 | K17: 1.016331881 | L17: 3.368865743 | M17: 6.654165529 | N17: -8.442021059 | O17: -1.640852264 | P17: -1.080451623 | Q17: 0.9845303862 | R17: 7.842019448 | S17: 5.422159924 | T17: 1.162443311 | U17: 3.185773351 | V17: 1.46105517 | W17: 2.968469016 | X17: 3.271325425 | Y17: 1.622506115 | AD17: -0.4781720372 | AE17: 0.2641992478 | AF17: 20.77833306 | AG17: 20.87565147 | AH17: -3.965935976 | AI17: -3.456781989 | AJ17: -6.6 | AK17: -5.1
A18: Intermoney | B18: 1.1 | C18: 1.9 | F18: 0.6 | G18: 1.2 | H18: -1.1 | I18: -0.1 | J18: -2.8 | K18: 3.1 | L18: 3.9 | M18: 7.1 | N18: -7.5 | O18: -0.2 | P18: -0.5 | Q18: 1.3 | R18: 8.8 | S18: 7.5 | T18: 2.5 | U18: 5.2 | X18: 3.3 | Y18: 1.9 | AB18: 1.2 | AC18: 1.6 | AD18: -0.5 | AE18: 1.1 | AF18: 20.3 | AG18: 19.6 | AH18: -4.2 | AI18: -3.5 | AJ18: -6 | AK18: -4.8
A19: La Caixa | B19: 0.5390050913 | C19: 1.465708436 | F19: 0.8795905463 | G19: 1.225618266 | H19: -1.678056593 | I19: -0.201828083 | J19: -3.609719601 | K19: 1.006080043 | L19: 2.992767632 | M19: 6.673115635 | N19: -7.521038971 | O19: -1.956413838 | P19: -0.6 | Q19: 0.89 | R19: 9.36321121 | S19: 8.458193896 | T19: 4.651911089 | U19: 6.280689864 | V19: 2.2 | W19: 2.575 | X19: 2.872842259 | Y19: 1.738106422 | AB19: 0.5 | AC19: 1 | AD19: -0.5109949087 | AE19: 0.5282084364 | AF19: 20.37537605 | AG19: 19.71462692 | AH19: -3.733631756 | AI19: -3.543007603 | AJ19: -6.438284538 | AK19: -5.185722753
A20: Repsol | B20: 0.7216811434 | C20: 1.3 | F20: 0.6389240261 | G20: 0.9 | H20: -1.8140742 | I20: -1.343215137 | J20: -4.129582333 | K20: 0.3723891349 | L20: 3.134932621 | M20: 4.182194375 | N20: -8.586486922 | O20: -1.877123899 | P20: -0.8297575793 | Q20: 0.5 | R20: 7.85 | S20: 6.7875 | T20: 2.02859329 | U20: 3.6 | V20: 1.6 | W20: 3 | X20: 3.3 | Y20: 1.6 | AB20: 1.2 | AC20: 1.1 | AD20: -0.4 | AE20: 0.7 | AF20: 20.5 | AG20: 20.3 | AH20: -4 | AI20: -3.6 | AJ20: -6.1 | AK20: -4.9
A21: Santander | B21: 0.8 | C21: 1.5 | F21: 0.8 | G21: 1 | H21: -0.4 | I21: 0 | J21: -3.7 | K21: 2.1 | L21: 3.1 | M21: 4.6 | N21: -7 | O21: 0.5 | P21: -0.5 | Q21: 0.9 | R21: 7 | S21: 5.8 | T21: 2.1 | U21: 4 | X21: 3.2 | Y21: 2.6 | AB21: 1.4 | AC21: 1.9 | AD21: 0 | AE21: 0.6 | AF21: 20 | AG21: 19.4 | AH21: -3.7 | AI21: -3.5 | AJ21: -6.1 | AK21: -4.8
A22: Solchaga Recio & asociados | B22: 1 | C22: 1.8 | F22: 1 | G22: 1.5 | H22: -1.2 | I22: -0.6 | J22: -3.1 | K22: 2.3 | L22: 1 | M22: 5 | N22: -5.7 | O22: -0.5 | P22: -0.3 | Q22: 1.2 | R22: 7.5 | S22: 6.8 | T22: 2.1 | U22: 3.8 | X22: 2.2 | Y22: 1.5 | AD22: 0 | AE22: 0.9 | AF22: 20.3 | AG22: 18.5 | AH22: -3.7 | AI22: -3.1 | AJ22: -6 | AK22: -4.5
A23: Caja Madrid | B23: 0.7 | C23: 1.5 | F23: 0.5 | G23: 1.2 | H23: -1.2 | I23: 0.3 | J23: -2.9 | K23: 2 | L23: 1.6 | M23: 4 | N23: -6.7 | O23: 0.4 | P23: -0.6 | Q23: 1.2 | R23: 8 | S23: 5.6 | T23: 3 | U23: 4.5 | V23: 1.9 | W23: 2.6 | X23: 3 | Y23: 1.8 | AB23: 0.8 | AC23: 1.3 | AD23: -0.5 | AE23: 0.6 | AF23: 20.4 | AG23: 20 | AH23: -3.2 | AI23: -3 | AJ23: -6.3 | AK23: -4.8
A24: Barclays
A25: Oxford Economics
A26: Bank of America - Merrill
A27: Goldman Sachs
A28: HSBC | B28: 0.8 | C28: 1 | F28: 0.6 | G28: 0.7 | X28: 2.7 | Y28: 1.7
A29: UBS | B29: 0.6 | C29: 1.7 | F29: 0.6 | G29: 1.2 | X29: 2.2 | Y29: 1.2
A30: EIU | B30: 0.7 | C30: 1 | F30: 0.7 | G30: 1.2 | X30: 2.4 | Y30: 1.7
A31: Citigroup | B31: 0.1 | C31: 0.2 | F31: -0.8 | G31: -1.4 | X31: 3.2 | Y31: 1.8
A32: IHS Economics
A33: ING Financial Markets
A34: MAX | B34: =QUARTILE(B4:B33,4) -> 1.1 | C34: =QUARTILE(C4:C33,4) -> 1.9 | F34: 1 | G34: 1.700782111 | H34: -0.4 | I34: 0.6 | J34: -1.1 | K34: 3.4 | L34: 4 | M34: 7.1 | N34: -4.8 | O34: 2.3 | P34: 0 | Q34: 1.5 | R34: 9.36321121 | S34: 8.458193896 | T34: 4.651911089 | U34: 6.280689864 | V34: 3.6 | W34: 5 | X34: 3.5 | Y34: 2.6 | AB34: 2.2 | AC34: 2.6 | AD34: 0 | AE34: 1.1 | AF34: 21 | AG34: 20.9 | AH34: -3.1 | AI34: -2.8 | AJ34: -6 | AK34: -4.5
A35: MIN | B35: =QUARTILE(B4:B33,0) -> 0.1 | C35: =QUARTILE(C4:C33,0) -> 0.2 | F35: -0.8 | G35: -1.4 | H35: -2.6 | I35: -1.343215137 | J35: -4.528848613 | K35: -0.486253092 | L35: 0.5 | M35: 3.2 | N35: -9.335112598 | O35: -4.088491278 | P35: -1.080451623 | Q35: 0.5 | R35: 4 | S35: 4.3 | T35: 0.5 | U35: 3.185773351 | V35: 1 | W35: 1.9 | X35: 1.2 | Y35: 1.2 | AB35: 0.4 | AC35: 1 | AD35: -0.7 | AE35: 0.2641992478 | AF35: 20 | AG35: 18.5 | AH35: -4.2 | AI35: -4.7 | AJ35: -7.7 | AK35: -7.1
A36: Primer cuartil | B36: =QUARTILE(B4:B33,1) -> 0.6434325308 | C36: =QUARTILE(C4:C33,1) -> 1.3 | F36: 0.6 | G36: 1 | H36: -1.3 | I36: -0.8 | J36: -3.609719601 | K36: 1.016331881 | L36: 1.530410197 | M36: 4 | N36: -7.505259743 | O36: -1.640852264 | P36: -0.7 | Q36: 0.89 | R36: 7 | S36: 5.6 | T36: 1.816526406 | U36: 3.6 | V36: 1.46105517 | W36: 2.58125 | X36: 2.4 | Y36: 1.525 | AB36: 0.7233302402 | AC36: 1.175 | AD36: -0.5 | AE36: 0.4122501534 | AF36: 20.3 | AG36: 19.71462692 | AH36: -3.982967988 | AI36: -3.625 | AJ36: -6.550134791 | AK36: -5.121430688
A37: Tercer cuartil | B37: =QUARTILE(B4:B33,3) -> 0.8 | C37: =QUARTILE(C4:C33,3) -> 1.6 | F37: 0.9 | G37: 1.3 | H37: -1 | I37: -0.1 | J37: -2.353534822 | K37: 2.1 | L37: 3.108733155 | M37: 5.5 | N37: -5.45 | O37: 0.4 | P37: -0.3 | Q37: 1.2 | R37: 7.9 | S37: 6.8 | T37: 2.7 | U37: 4.6 | V37: 2.2 | W37: 2.992117254 | X37: 3.2 | Y37: 1.8 | AB37: 1.35 | AC37: 1.675 | AD37: -0.1 | AE37: 0.8 | AF37: 20.5 | AG37: 20.4 | AH37: -3.6 | AI37: -3.367586492 | AJ37: -6.05 | AK37: -4.8
A38: Gobierno (abril 2011) | B38: 1.3 | C38: 2.3 | F38: 0.9 | G38: 1.4 | H38: -1.3 | I38: -0.8 | J38: -1.3 | K38: 2.7 | L38: 3.2 | M38: 5.2 | N38: -4.7 | O38: 0.7 | P38: 0 | Q38: 1.3 | R38: 8.3 | S38: 7.9 | T38: 3 | U38: 4.1 | AB38: 0.5 | AC38: 1.4 | AD38: 0.2 | AE38: 1.4 | AF38: 19.8 | AG38: 18.5 | AH38: -3.4 | AI38: -2.7 | AJ38: -6 | AK38: -4.4
A39: Gobierno plan de estabilidad | B39: 1.3 | C39: 2.3 | D39: 2.4 | E39: 2.6 | F39: 0.9 | G39: 1.4 | H39: -1.3 | I39: -0.8 | J39: -1.3 | K39: 2.7 | R39: 8.3 | S39: 7.9 | T39: 3 | U39: 4.1 | AB39: 0.5 | AC39: 1.4 | AD39: 0.2 | AE39: 1.4 | AF39: 19.8 | AG39: 18.5 | AH39: -3.4 | AI39: -2.7 | AJ39: -6 | AK39: -4.4 | AL39: -3 | AM39: -2.1
A40: Banco de España (marzo 2011) | B40: 0.8 | C40: 1.5 | F40: 0.7 | G40: 1 | H40: -1.1 | I40: -0.9 | J40: -3.1 | K40: 3.6 | L40: 2.9 | M40: 6.7 | N40: -7.5 | O40: 1.3 | R40: 8 | S40: 6.1 | T40: 2.7 | U40: 4.9 | X40: 2.9 | Y40: 1.5 | AB40: 1.1 | AC40: 1.5 | AD40: -0.6 | AE40: 1 | AF40: 20.7 | AG40: 20.4 | AH40: -3.7 | AI40: -3.7 | AJ40: -6.2 | AK40: -5.2
A41: CE (noviembre 2010) | B41: 0.7 | C41: 1.7 | X41: 2.4 | AJ41: -6.4 | AK41: -5.5
A42: FMI (WEO april 2011) | B42: 0.829 | C42: 1.613 | D42: 1.768 | E42: 1.935 | F42: 1.3 | G42: 1.4 | H42: -1.1 | I42: -1.6 | J42: -2.7 | K42: 4 | P42: -0.1 | Q42: 1.4 | R42: 6.7 | S42: 4.6 | T42: 3 | U42: 3.5 | X42: 2.596 | Y42: 1.533 | Z42: 1.369 | AA42: 1.518 | AD42: 0.3 | AE42: 1 | AF42: 19.4 | AG42: 18.2 | AH42: -4.8 | AI42: -4.5 | AJ42: -6.235 | AK42: -5.645 | AL42: -4.983 | AM42: -4.72
A43: OCDE (noviembre 2010) | B43: 0.9 | C43: 1.8 | F43: 1.7 | G43: 2.3 | H43: -0.8 | I43: -1.3 | J43: -1.8 | K43: 2 | P43: 0.4 | Q43: 1.5 | R43: 8.1 | S43: 10.4 | T43: 5.8 | U43: 8.7 | X43: 0.9 | Y43: 0.3 | AF43: 19.1 | AG43: 17.4 | AH43: -5.2 | AI43: -4.9 | AJ43: -6.3 | AK43: -4.4
A44: Consenso Ampliado | B44: =AVERAGE(B4:B33) -> 0.7139766503 | C44: =AVERAGE(C4:C33) -> 1.377378725 | F44: =AVERAGE(F4:F33) -> 0.6615179023 | G44: 1.068294475 | H44: -1.247976999 | I44: -0.4325913736 | J44: -2.974274784 | K44: 1.645929795 | L44: 2.363637924 | M44: 4.967022193 | N44: -6.705291222 | O44: -0.5432985598 | P44: -0.5041662594 | Q44: 1.023110794 | R44: 7.240592829 | S44: 6.335535789 | T44: 2.274086712 | U44: 4.326462856 | V44: 1.895672797 | W44: 3.007244836 | X44: 2.797341318 | Y44: 1.731145141 | AB44: =AVERAGE(AB4:AB33) -> 1.089777365 | AC44: 1.487574243 | AD44: -0.3131991615 | AE44: 0.631127526 | AF44: 20.43992167 | AG44: 20.02778021 | AH44: -3.733304515 | AI44: -3.549982466 | AJ44: -6.422570275 | AK44: -5.080950391
A45: Consenso Panel FUNCAS | B45: 0.7525593916 | C45: 1.501187563 | F45: 0.7524632911 | G45: 1.266231237 | H45: -1.247976999 | I45: -0.4325913736 | J45: -2.974274784 | K45: 1.645929795 | L45: 2.363637924 | M45: 4.967022193 | N45: -6.705291222 | O45: -0.5432985598 | P45: -0.5041662594 | Q45: 1.023110794 | R45: 7.240592829 | S45: 6.335535789 | T45: 2.274086712 | U45: 4.326462856 | V45: 1.895672797 | W45: 3.007244836 | X45: 2.837892217 | Y45: 1.768615181 | AB45: 1.089777365 | AC45: 1.487574243 | AD45: -0.3131991615 | AE45: 0.631127526 | AF45: 20.43992167 | AG45: 20.02778021 | AH45: -3.733304515 | AI45: -3.549982466 | AJ45: -6.422570275 | AK45: -5.080950391
A46: Realizado | B46: -0.6171868074 | C46: -2.089821385 | F46: -2.029566628 | G46: -2.922796589 | H46: -0.2536101985 | I46: -3.68667831 | J46: -6.389102935 | K46: -8.26548478 | R46: 7.498964161 | S46: 1.17217938 | T46: -0.745552937 | U46: -6.285748975 | X46: 3.052065927 | Y46: 2.435949806 | AB46: -1.43042454 | AC46: -3.356732798 | AD46: -1.548619766 | AE46: -4.238694212 | AF46: 21.7 | AG46: 25 | AH46: -9.278540043 | AI46: -0.4 | AJ46: -9.44557556 | AK46: -10.63490627

Sheet 2012
B1: PIB | F1: Consumo | H1: Consumo | J1: Formac. bruta | L1: FBCF maquinaria | N1: FBCF | P1: Demanda | R1: Exportaciones | T1: Importaciones | V1: Producción | X1: IPC | AB1: Costes | AD1: Empleo (4) | AF1: Paro (EPA) | AH1: Saldo B. Pagos c/c | AJ1: Saldo AA.PP.
F2: hogares | H2: público | J2: de capital fijo | L2: y bienes equipo | N2: Construcción | P2: nacional | R2: bienes y serv. | T2: bienes y serv. | V2: industrial (IPI) | X2: (media anual) | AB2: laborales (3) | AF2: (% pob. activa) | AH2: (% del PIB) (5) | AJ2: (% del PIB)
B3: 2012 | C3: 2013 | D3: 2014 | E3: 2015 | F3: 2012 | G3: 2013 | H3: 2012 | I3: 2013 | J3: 2012 | K3: 2013 | L3: 2012 | M3: 2013 | N3: 2012 | O3: 2013 | P3: 2012 | Q3: 2013 | R3: 2012 | S3: 2013 | T3: 2012 | U3: 2013 | V3: 2012 | W3: 2013 | X3: 2012 | Y3: 2013 | Z3: 2014 | AA3: 2015 | AB3: 2012 | AC3: 2013 | AD3: 2012 | AE3: 2013 | AF3: 2012 | AG3: 2013 | AH3: 2012 | AI3: 2013 | AJ3: 2012 | AK3: 2013 | AL3: 2014 | AM3: 2015
A4: Analistas Financieros Internacionales (AFI) | B4: -2.3 | C4: -1.2 | F4: -2 | G4: -0.9 | H4: -14.2 | I4: -9.4 | J4: -8.4 | K4: -2.5 | L4: -6.5 | M4: -1.1 | N4: -9.6 | O4: -3.3 | P4: -6 | Q4: -2.8 | R4: 3.2 | S4: 5.8 | T4: -8.8 | U4: 0.8 | X4: 1.8 | Y4: 1.4 | AD4: -4.3 | AE4: -2.2 | AF4: 25 | AG4: 26.4 | AH4: -1.5 | AI4: 0.2 | AJ4: -5.6 | AK4: -3.5
A5: Banco Bilbao Vizcaya Argentaria (BBVA) | B5: -1.282975994 | C5: 0.5964236553 | F5: -2.00613088 | G5: -0.9003136662 | H5: -3.081111051 | I5: -1.750107378 | J5: -6.307573816 | K5: -1.898885415 | L5: -5.198382382 | M5: 1.943811661 | N5: -7.256370441 | O5: -4.015752711 | P5: -3.226524249 | Q5: -1.312128554 | R5: 1.608011246 | S5: 8.192669027 | T5: -4.789782408 | U5: 2.13598449 | X5: 1.167704451 | Y5: 1.095751541 | AD5: -3.781209673 | AE5: -1.861067921 | AF5: 24.41022043 | AG5: 24.60613806 | AH5: -3.458315188 | AI5: -1.148716489 | AJ5: -5.284902625 | AK5: -2.982842009
A6: Bankia | B6: -1.6 | C6: 0 | F6: -2.5 | G6: -0.4 | H6: -5.5 | I6: -3.9 | J6: -7.4 | K6: -0.7 | L6: -4.2 | M6: 1.1 | N6: -9.1 | O6: -1.7 | P6: -4.2 | Q6: -1.2 | R6: 2 | S6: 3.6 | T6: -6.7 | U6: 0 | V6: -1.2 | W6: 1 | X6: 1.9 | Y6: 1.8 | AB6: 0.3 | AC6: 0.6 | AD6: -3.3 | AE6: -1.5 | AF6: 24.4 | AG6: 25.5 | AH6: -2.5 | AI6: -1.5
A7: CatalunyaCaixa | B7: -1.873514989 | C7: -0.5827360341 | F7: -1.92996396 | G7: -0.6 | H7: -11.5 | I7: -9.012849196 | J7: -10.34414573 | K7: -2.145237224 | L7: -6.154844837 | M7: 1.948588554 | N7: -12.62468262 | O7: -4.582579454 | P7: -4.3 | Q7: -1.6 | R7: 4.559404159 | S7: 5.068603704 | T7: -6.355708659 | U7: 0.2119103376 | X7: 2.1 | Y7: 1.5 | AD7: -3.7 | AE7: -1.1 | AF7: 24.1 | AG7: 25.1
A8: Cemex | B8: -2.1 | C8: 0 | F8: -1.9 | G8: -0.5 | H8: -4.6 | I8: -3 | J8: -12 | K8: -3.9 | L8: -10 | M8: -2 | N8: -14 | O8: -6 | P8: -4.7 | Q8: -1.7 | R8: 1.8 | S8: 5.7 | T8: -5.5 | U8: 1 | X8: 1.3 | Y8: 1.5 | AD8: -3 | AE8: -1 | AF8: 24.3 | AG8: 24.3 | AH8: -1.9 | AI8: -0.7 | AJ8: -5.8 | AK8: -3
A9: Centro de Estudios Economía de Madrid (CEEM-URJC) | B9: -1.892834286 | C9: 0.6343935193 | F9: -1.74 | G9: 0.4 | H9: -7.84 | I9: -2.5 | J9: -8.219726266 | K9: -2.002771432 | L9: -7.54 | M9: 1.1 | N9: -8.64 | O9: -3.6 | P9: -4.376324953 | Q9: -0.657681972 | R9: 4.84 | S9: 4.5 | T9: -3.7 | U9: 0.4 | X9: 1.658333333 | Y9: 1.45 | AD9: -3.326514081 | AE9: -0.549660496 | AF9: 24.0920637 | AG9: 24.28214608 | AH9: -1.5 | AI9: -0.1 | AJ9: -5.3 | AK9: -3.4
A10: Centro de Predicción Económica (CEPREDE-UAM) | B10: -1.034738553 | C10: -0.4240746943 | F10: -1.517401479 | G10: 0.1310509557 | H10: -8.550753463 | I10: -8.014924888 | J10: -10.16522558 | K10: -4.066594592 | L10: -7.2 | M10: -2.8 | N10: -12.1 | O10: -5.1 | P10: -5.007956132 | Q10: -2.424428291 | R10: 2.798948411 | S10: 4.758345407 | T10: -9.789038444 | U10: -0.6793734839 | V10: -2.7 | W10: -1.2 | X10: 2.326047739 | Y10: 2.611554678 | AB10: 1.6 | AC10: 2.1 | AD10: -2.7 | AE10: -1.2 | AF10: 22.8 | AG10: 23.1 | AH10: -0.4 | AI10: 1.4 | AJ10: -5.4 | AK10: -3
A11: CEOE | B11: -1.6 | C11: 0.7 | F11: -1.2 | G11: -0.4 | H11: -7.4 | I11: -4.2 | J11: -7.6 | K11: -2.2 | L11: -4.8 | M11: 0.5 | N11: -9.2 | O11: -3.4 | P11: -3.7 | Q11: -1.4 | R11: 3.4 | S11: 6.9 | T11: -4.4 | U11: -0.2 | V11: -3.8 | W11: 1.5 | X11: 1.9 | Y11: 1.1 | AB11: 0.4 | AC11: 0.5 | AD11: -3 | AE11: -0.5 | AF11: 23.8 | AG11: 23.9 | AH11: -2 | AI11: -0.4 | AJ11: -6.1 | AK11: -3.9
A12: ESADE | B12: -1.5 | F12: -1 | H12: -6.9 | J12: -1.3 | P12: -2.2 | R12: 4 | T12: 1 | X12: 1.7 | AF12: 23
A13: Fundación Cajas de Ahorros (FUNCAS) | B13: -1.714632387 | C13: -1.496762229 | F13: -2.097907552 | G13: -2.692568239 | H13: -6.610310571 | I13: -7.207094697 | J13: -8.08661946 | K13: -6.348317781 | L13: -4.841772149 | M13: -3.058931544 | N13: -10.02258013 | O13: -8.455231467 | P13: -4.367815567 | Q13: -4.43813157 | R13: 3.327602203 | S13: 5.897892904 | T13: -5.462297885 | U13: -3.132062595 | V13: -4.147194869 | W13: -1.415409377 | X13: 2.19903793 | Y13: 1.522157093 | AB13: -0.198207621 | AC13: -0.5004517596 | AD13: -3.619777601 | AE13: -2.686099691 | AF13: 24.54879615 | AG13: 26.28025599 | AH13: -1.747465772 | AI13: 1.03788371 | AJ13: -6.186252528 | AK13: -3.018175027
A14: Instituto Complutense de Análisis Económico (ICAE-UCM) | B14: -1.6 | C14: -0.4 | F14: -2.1 | G14: -2.1 | H14: -5.9 | I14: -1.1 | J14: -10 | K14: -5.5 | L14: -3 | M14: -5 | N14: -11.5 | O14: -6 | P14: -4.5 | Q14: -1.8 | R14: 1.3 | S14: 4.1 | T14: -9 | U14: -1.7 | V14: -4.5 | W14: -2 | X14: 2 | Y14: 2 | AB14: 0 | AC14: 1.5 | AD14: -2.8 | AE14: -1.5 | AF14: 23.8 | AG14: 22.6 | AH14: -1 | AI14: -2 | AJ14: -5.3 | AK14: -3
A15: Instituto de Estudios Económicos (IEE) | B15: -1.8 | F15: -1.8 | H15: -4.4 | J15: -7.081818182 | L15: -5.5 | N15: -8.9 | P15: -3.298520294 | R15: 3 | T15: -3 | X15: 2 | AB15: 0.3 | AD15: -2.5 | AF15: 24.1 | AH15: -2.5 | AJ15: -5.8
A16: Instituto de Macroeconomía y Finanzas (Universidad CJC)
A17: Instituto Flores de Lemus (IFL-UC3M) | B17: -1.7 | C17: -0.3 | F17: -1.4 | G17: -0.7 | H17: -11.14781827 | I17: -6.321759579 | J17: -7.340313716 | K17: -2.906363767 | L17: -3.050550831 | M17: -1.041596912 | N17: -9.797749334 | O17: -4.203200651 | R17: 5.725320623 | S17: 6.131614096 | T17: -3.724219709 | U17: 0.2159254745 | V17: -2.8 | W17: -2.9 | X17: 2.1 | Y17: 1.5 | AF17: 23.9 | AG17: 24.9 | AH17: -2.2 | AI17: -0.7
A18: Intermoney | B18: -2.1 | F18: -2.5 | H18: -4.6 | J18: -12.4 | L18: -10.8 | N18: -13.9 | P18: -5.1 | R18: -1.5 | T18: -11 | V18: -7.6 | X18: 0.9 | AB18: -0.3 | AD18: -3.8 | AF18: 24 | AH18: -0.5 | AJ18: -6.2
A19: La Caixa | B19: -1 | C19: 0.6 | F19: -1.5 | G19: 0.2 | H19: -6.2 | I19: -3.8 | J19: -8.5 | K19: -0.3 | L19: -5.3 | M19: 4.8 | N19: -10 | O19: -2.7 | P19: -4 | Q19: -0.7 | R19: 2.378635393 | S19: 5.288351109 | T19: -7.433602258 | U19: 1.166000937 | V19: -4.5 | W19: 1 | X19: 1.8 | Y19: 1.6 | AB19: 0.4 | AC19: 1 | AD19: -3.458170298 | AE19: -1.057120407 | AF19: 24.12365303 | AG19: 24.27928187 | AH19: -1.9 | AI19: -1.4 | AJ19: -5.8 | AK19: -3.5
A20: Repsol | B20: -1.752725456 | C20: -0.4482299463 | F20: -2.078674198 | G20: -0.5062093628 | H20: -7.492019095 | I20: -6.219452858 | J20: -9.589897226 | K20: -5.589485732 | L20: -4.525805113 | M20: -0.8365568539 | N20: -12.27404854 | O20: -7.985794997 | P20: -4.772583302 | Q20: -2.706526386 | R20: 5.265573078 | S20: 7.392752852 | T20: -5.121778589 | U20: 0.1682458245 | V20: -2.6 | W20: 0.2 | X20: 2.1 | Y20: 1.5 | AB20: 0.8 | AC20: 0.6 | AD20: -2.2 | AE20: -1.5 | AF20: 23.3 | AG20: 24.2 | AH20: -2.9 | AI20: -1.9 | AJ20: -5.6 | AK20: -3.4
A21: Santander | B21: -1.6 | C21: -0.2 | F21: -1.5 | G21: -0.8 | H21: -6.5 | I21: -6 | J21: -8.1 | K21: -5 | L21: -6 | M21: -1.8 | N21: -9.1 | O21: -6.6 | P21: -4 | Q21: -2.7 | R21: 4.3 | S21: 6.8 | T21: -3.8 | U21: -0.9 | X21: 1.8 | Y21: 1.4 | AB21: 0.4 | AC21: 0.4 | AD21: -3.1 | AE21: -1.6 | AF21: 23.8 | AG21: 24.6 | AH21: -2.1 | AI21: -1
A22: Solchaga Recio & asociados | B22: -1.8 | C22: 0 | F22: -1.8 | G22: -0.7 | H22: -6.1 | I22: -3.5 | J22: -9.2 | K22: -2.4 | L22: -7.5 | M22: -0.4 | N22: -9.6 | O22: -3.3 | P22: -4.4 | Q22: -2.1 | R22: 3.1 | S22: 5.9 | T22: -5.3 | U22: -0.2 | X22: 2.1 | Y22: 1.5 | AD22: -3.9 | AE22: -1 | AF22: 24.5 | AG22: 24.8 | AH22: -1.2 | AI22: -0.7 | AJ22: -6.5 | AK22: -5
A23: Caja Madrid
A24: Barclays
A25: Oxford Economics
A26: Bank of America - Merrill
A27: Goldman Sachs
A28: HSBC | B28: -2 | C28: -0.9 | F28: -2.1 | G28: -0.6 | X28: 1.8 | Y28: 1.3
A29: UBS | B29: -2 | C29: -0.2 | F29: -1.2 | G29: 0.5 | X29: 1.3 | Y29: 1.8
A30: EIU | B30: -1.2 | C30: 0.3 | F30: -1 | G30: -0.2 | X30: 2.1 | Y30: 1.8
A31: Citigroup | B31: -2.7 | C31: -1.2 | F31: -2.6 | G31: -1.8 | X31: 2.3 | Y31: 1.8
A32: IHS Economics
A33: ING Financial Markets
A34: MAX | B34: =QUARTILE(B4:B33,4) -> -1 | C34: =QUARTILE(C4:C33,4) -> 0.7 | F34: -1 | G34: 0.5 | H34: -3.081111051 | I34: -1.1 | J34: -1.3 | K34: -0.3 | L34: -3 | M34: 4.8 | N34: -7.256370441 | O34: -1.7 | P34: -2.2 | Q34: -0.657681972 | R34: 5.725320623 | S34: 8.192669027 | T34: 1 | U34: 2.13598449 | V34: -1.2 | W34: 1.5 | X34: 2.326047739 | Y34: 2.611554678 | AB34: 1.6 | AC34: 2.1 | AD34: -2.2 | AE34: -0.5 | AF34: 25 | AG34: 26.4 | AH34: -0.4 | AI34: 1.4 | AJ34: -5.284902625 | AK34: -2.982842009
A35: MIN | B35: =QUARTILE(B4:B33,0) -> -2.7 | C35: =QUARTILE(C4:C33,0) -> -1.496762229 | F35: -2.6 | G35: -2.692568239 | H35: -14.2 | I35: -9.4 | J35: -12.4 | K35: -6.348317781 | L35: -10.8 | M35: -5 | N35: -14 | O35: -8.455231467 | P35: -6 | Q35: -4.43813157 | R35: -1.5 | S35: 3.6 | T35: -11 | U35: -3.132062595 | V35: -7.6 | W35: -2.9 | X35: 0.9 | Y35: 1.095751541 | AB35: -0.3 | AC35: -0.5004517596 | AD35: -4.3 | AE35: -2.686099691 | AF35: 22.8 | AG35: 22.6 | AH35: -3.458315188 | AI35: -2 | AJ35: -6.5 | AK35: -5
A36: Primer cuartil | B36: =QUARTILE(B4:B33,1) -> -1.973208571 | C36: =QUARTILE(C4:C33,1) -> -0.5154829902 | F36: -2.093099214 | G36: -0.85 | H36: -7.753004774 | I36: -6.764427138 | J36: -9.897474307 | K36: -4.533297296 | L36: -7.2 | M36: -1.9 | N36: -12.1 | O36: -6 | P36: -4.7 | Q36: -2.631107073 | R36: 2.094658848 | S36: 4.913474556 | T36: -7.250201693 | U36: -0.439686742 | V36: -4.5 | W36: -1.561557033 | X36: 1.725 | Y36: 1.425 | AB36: 0.075 | AC36: 0.475 | AD36: -3.720302418 | AE36: -1.575 | AF36: 23.8 | AG36: 24.23964093 | AH36: -2.275 | AI36: -1.337179122 | AJ36: -6.1 | AK36: -3.5
A37: Tercer cuartil | B37: =QUARTILE(B4:B33,3) -> -1.6 | C37: =QUARTILE(C4:C33,3) -> 0.15 | F37: -1.5 | G37: -0.3 | H37: -5.6 | I37: -3.25 | J37: -7.45 | K37: -2.074004328 | L37: -4.8 | M37: 1.1 | N37: -9.1 | O37: -3.35 | P37: -4 | Q37: -1.334096416 | R37: 4.225 | S37: 6.465807048 | T37: -3.95 | U37: 0.6 | V37: -2.7 | W37: 1 | X37: 2.1 | Y37: 1.8 | AB37: 0.4 | AC37: 1.125 | AD37: -2.95 | AE37: -1.014280102 | AF37: 24.375 | AG37: 25 | AH37: -1.425 | AI37: -0.175 | AJ37: -5.4 | AK37: -3
A38: Gobierno (abril 2012) | B38: -1.7 | F38: -1.4 | H38: -8 | J38: -9 | L38: -7.3 | N38: -9.9 | P38: -4.4 | R38: 3.5 | T38: -5.1 | X38: 1.6 | AB38: 0.2 | AD38: -3.7 | AF38: 24.3 | AH38: -0.9 | AJ38: -5.3
A39: Gobierno plan de estabilidad | B39: -1.7 | C39: 0.2 | D39: 1.4 | E39: 1.8 | F39: -1.4 | G39: -1.1 | H39: -8 | I39: -4.6 | J39: -9 | K39: -0.5 | R39: 3.5 | S39: 6.9 | T39: -5.1 | U39: 1.3 | AJ39: -5.3 | AK39: -3 | AL39: -2.2 | AM39: -1.1
A40: Banco de España (enero 2012) | B40: -1.5 | C40: 0.2 | F40: -1.2 | G40: -0.5 | H40: -6.3 | I40: -3.3 | J40: -9.2 | K40: -2.2 | L40: -7 | M40: -0.9 | N40: -10.6 | O40: -3.1 | R40: 3.5 | S40: 5.9 | T40: -4.8 | U40: 1.2 | X40: 1.5 | Y40: 1.2 | AB40: -0.8 | AC40: 0.1 | AD40: -3 | AE40: -0.7 | AF40: 23.4 | AG40: 23.3 | AH40: -1.4 | AI40: 0 | AJ40: -4.4 | AK40: -3
A41: CE (noviembre 2011) | B41: -1.4 | C41: 0.8 | X41: 1.3 | AJ41: -6 | AK41: -6.4
A42: FMI (WEO april 2014) | B42: -1.826 | C42: 0.125 | D42: 1.155 | E42: 1.647 | F42: -0.9 | G42: 0.6 | H42: -7.6 | I42: -2.4 | J42: -7.5 | K42: -1 | R42: 2.1 | S42: 4.1 | T42: -4.1 | U42: 2.9 | X42: 1.893 | Y42: 1.561 | Z42: 1.627 | AA42: 1.584 | AD42: -3.2 | AE42: 0.1 | AF42: 24.2 | AG42: 23.9 | AH42: -2.1 | AI42: -1.7 | AJ42: -6.021 | AK42: -5.687 | AL42: -5.234 | AM42: -4.755
A43: OCDE (noviembre 2011) | B43: 0.3 | C43: 1.3 | F43: -0.1 | G43: 0.9 | H43: -2 | I43: -1.3 | J43: -4 | K43: 0.7 | P43: -1.3 | Q43: 0.4 | R43: 3.6 | S43: 5.6 | T43: -1.7 | U43: 3 | X43: 1.4 | Y43: 0.9 | AF43: 22.9 | AG43: 22.7 | AH43: -2.3 | AI43: -2 | AJ43: -4.4 | AK43: -3
A44: Consenso Ampliado | B44: =AVERAGE(B4:B33) -> -1.73415553 | C44: =AVERAGE(C4:C33) -> -0.2379466173 | F44: =AVERAGE(F4:F33) -> -1.794094458 | G44: -0.6614758059 | H44: -7.140111803 | I44: -5.061745906 | J44: -8.446406665 | K44: -3.16384373 | L44: -6.006550313 | M44: -0.4429790063 | N44: -10.44796653 | O44: -4.729503952 | P44: -4.244101441 | Q44: -1.967064055 | R44: 3.061305284 | S44: 5.735348607 | T44: -5.715357108 | U44: -0.04755793429 | V44: -3.76079943 | W44: -0.4769261721 | X44: 1.834141975 | Y44: 1.588392806 | AB44: =AVERAGE(AB4:AB33) -> 0.3701792379 | AC44: 0.77494353 | AD44: -3.280354478 | AE44: -1.375282037 | AF44: 23.9985963 | AG44: 24.5898548 | AH44: -1.83161131 | AI44: -0.6364880556 | AJ44: -5.759319627 | AK44: -3.427365185
A45: Consenso Panel FUNCAS | B45: -1.680634537 | C45: -0.1680657153 | F45: -1.809448782 | G45: -0.6978693542 | H45: -7.140111803 | I45: -5.061745906 | J45: -8.446406665 | K45: -3.16384373 | L45: -6.006550313 | M45: -0.4429790063 | N45: -10.44796653 | O45: -4.729503952 | P45: -4.244101441 | Q45: -1.967064055 | R45: 3.061305284 | S45: 5.735348607 | T45: -5.715357108 | U45: -0.04755793429 | V45: -3.76079943 | W45: -0.4769261721 | X45: 1.825062414 | Y45: 1.565297554 | AB45: 0.3701792379 | AC45: 0.77494353 | AD45: -3.280354478 | AE45: -1.375282037 | AF45: 23.9985963 | AG45: 24.5898548 | AH45: -1.83161131 | AI45: -0.6364880556 | AJ45: -5.759319627 | AK45: -3.427365185
A46: Realizado | B46: -2.089821385 | C46: -1.224300882 | F46: -2.922796589 | G46: -2.272084617 | H46: -3.68667831 | I46: -2.912704439 | J46: -8.26548478 | K46: -3.707710643 | R46: 1.17217938 | S46: 4.298644756 | T46: -6.285748975 | U46: -0.4269905213 | X46: 2.435949806 | Y46: 1.526381238 | AB46: -2.961646036 | AC46: -1.563265427 | AD46: -4.22987416 | AE46: -2.959260958 | AF46: 25 | AG46: 26.4 | AH46: -9.420759228 | AI46: 1.4 | AJ46: -10.61859807 | AK46: -7.07730687

Sheet 2013
B1: PIB | F1: Consumo | H1: Consumo | J1: Formac. bruta | L1: FBCF maquinaria | N1: FBCF | P1: Demanda | R1: Exportaciones | T1: Importaciones | V1: Producción | X1: IPC | AB1: Costes | AD1: Empleo (4) | AF1: Paro (EPA) | AH1: Saldo B. Pagos c/c | AJ1: Saldo AA.PP.
F2: hogares | H2: público | J2: de capital fijo | L2: y bienes equipo | N2: Construcción | P2: nacional | R2: bienes y serv. | T2: bienes y serv. | V2: industrial (IPI) | X2: (media anual) | AB2: laborales (3) | AF2: (% pob. activa) | AH2: (% del PIB) (5) | AJ2: (% del PIB)
B3: 2013 | C3: 2014 | D3: 2015 | E3: 2016 | F3: 2013 | G3: 2014 | H3: 2013 | I3: 2014 | J3: 2013 | K3: 2014 | L3: 2013 | M3: 2014 | N3: 2013 | O3: 2014 | P3: 2013 | Q3: 2014 | R3: 2013 | S3: 2014 | T3: 2013 | U3: 2014 | V3: 2013 | W3: 2014 | X3: 2013 | Y3: 2014 | Z3: 2015 | AA3: 2016 | AB3: 2013 | AC3: 2014 | AD3: 2013 | AE3: 2014 | AF3: 2013 | AG3: 2014 | AH3: 2013 | AI3: 2014 | AJ3: 2013 | AK3: 2014 | AL3: 2015 | AM3: 2016
A4: Analistas Financieros Internacionales (AFI) | B4: -1.8 | C4: 0.5 | F4: -3 | G4: -0.1 | H4: -6.3 | I4: -4 | J4: -6.4 | K4: 0.9 | L4: -4.4 | M4: 3.3 | N4: -7.7 | O4: -0.4 | P4: -4.3 | Q4: -0.7 | R4: 3.2 | S4: 6.2 | T4: -4.8 | U4: 3 | X4: 2.2 | Y4: 1.7 | AD4: -3.9 | AE4: 0.4 | AF4: 27.3 | AG4: 26.6 | AH4: 0.8 | AI4: 1.4 | AJ4: -5.8 | AK4: -4.5
A5: Banco Bilbao Vizcaya Argentaria (BBVA) | B5: -1.139695711 | C5: 1.077351672 | F5: -2.824085418 | G5: -0.2870336886 | H5: -7.187039727 | I5: -1.801868598 | J5: -6.845006072 | K5: 2.621498729 | L5: -1.731804607 | M5: 6.380545374 | N5: -10.24791203 | O5: 0.267944353 | P5: -4.551969612 | Q5: -0.0216672504 | R5: 6.264329151 | S5: 8.155943223 | T5: -4.422532338 | U5: 5.764596896 | X5: 2.003241552 | Y5: 1.148946661 | AD5: -3.385370964 | AE5: -0.3913337197 | AF5: 26.8114333 | AG5: 26.11264945 | AH5: 0.283625394 | AI5: 0.8601396572 | AJ5: -5.926580524 | AK5: -4.585751267
A6: Bankia | B6: -1.5 | C6: 0.7 | F6: -3.1 | G6: -0.1 | H6: -5 | I6: -3.1 | J6: -7.5 | K6: -0.8 | L6: -7.4 | M6: 0.5 | N6: -8.4 | O6: -1.8 | P6: -4.4 | Q6: -0.9 | R6: 3.6 | S6: 4.2 | T6: -5.7 | U6: -0.8 | V6: -2.8 | X6: 1.9 | Y6: 1.9 | AB6: -0.3 | AC6: 0.3 | AD6: -3.4 | AE6: -0.4 | AF6: 26.7 | AG6: 26.6 | AH6: 0.6 | AI6: 2.2
A7: CatalunyaCaixa | B7: -1.5 | C7: 0.8 | F7: -3.3 | G7: -0.1 | H7: -6.3 | I7: -2 | J7: -8.3 | K7: -3.8 | L7: -7.8 | M7: -3.4 | N7: -8.7 | O7: -4.1 | P7: -4.9 | Q7: -1.2 | R7: 5 | S7: 5.4 | T7: -4.6 | U7: 2 | X7: 2.1 | Y7: 2 | AD7: -3.5 | AE7: 1.1 | AF7: 26.8 | AG7: 26.3
A8: Cemex | B8: -1.6 | C8: 0.4 | F8: -3.1 | G8: 0.1 | H8: -3.6 | I8: -1.7 | J8: -7.9 | K8: -0.3 | L8: -6 | M8: 1.7 | N8: -10 | O8: -2.6 | P8: -4.1 | Q8: -0.3 | R8: 4.1 | S8: 5 | T8: -3.1 | U8: 3.2 | X8: 1.8 | Y8: 1.2 | AD8: -3 | AE8: 0.1 | AF8: 26.5 | AG8: 26.5 | AH8: 0.6 | AI8: 1 | AJ8: -5.3 | AK8: -4
A9: Centro de Estudios Economía de Madrid (CEEM-URJC) | B9: -1.391052087 | C9: 1.091417067 | F9: -2.4 | G9: 0.1 | H9: -7 | I9: -1.4 | J9: -5.468038227 | K9: -0.7614172327 | L9: -3.6 | M9: 0.8 | N9: -7.2 | O9: -1.9 | P9: -3.876126042 | Q9: -0.3530888422 | R9: 5.5 | S9: 5.8 | T9: -2.3 | U9: 1.8 | X9: 1.841666667 | Y9: 1.191666667 | AD9: -2.249090472 | AE9: 0.1967348921 | AF9: 25.97419678 | AG9: 25.53068494 | AH9: -0.1 | AI9: 1.5 | AJ9: -5.7 | AK9: -4.1
A10: Centro de Predicción Económica (CEPREDE-UAM) | B10: -1.5 | C10: 0.9 | F10: -2.5 | G10: 0.1 | H10: -3.8 | I10: -0.6 | J10: -7.9 | K10: -1.3 | L10: -6.7 | M10: -1 | N10: -9.5 | O10: -2 | P10: -4.3 | Q10: -0.6 | R10: 3.2 | S10: 4.9 | T10: -4.2 | U10: 1.7 | V10: -3.7 | W10: -1.6 | X10: 2.1 | Y10: 1.7 | AB10: -0.7 | AC10: 0.8 | AD10: -3 | AE10: -0.4 | AF10: 26.6 | AG10: 26.9 | AH10: 1.3 | AI10: 2.5 | AJ10: -5.1 | AK10: -4.7
A11: CEOE | B11: -1.5 | C11: 0.8 | F11: -3.1 | G11: -0.2 | H11: -4 | I11: -2.4 | J11: -7.3 | K11: -2.2 | L11: -2.8 | M11: 3.3 | N11: -10.5 | O11: -5.5 | P11: -4.2 | Q11: -0.9 | R11: 5.1 | S11: 5.7 | T11: -3.1 | U11: 0.8 | V11: -3.6 | W11: 2 | X11: 2 | Y11: 1.2 | AB11: 0.9 | AC11: 0.1 | AD11: -3.2 | AE11: -0.5 | AF11: 27 | AG11: 26.9 | AH11: -0.1 | AI11: -0.4 | AJ11: -5.5 | AK11: -4.8
A12: ESADE | B12: -1 | F12: -1 | H12: -4.5 | J12: -0.9 | P12: -1.7 | R12: 3 | T12: -1 | X12: 2.5 | AD12: -2.5 | AF12: 24.5 | AH12: -2.5
A13: Fundación Cajas de Ahorros (FUNCAS) | B13: -1.593700321 | C13: 0.4942403717 | F13: -3.193971445 | G13: -0.3045378817 | H13: -3.113560499 | I13: -2.408990967 | J13: -7.663270206 | K13: -2.746459689 | L13: -6.52169868 | M13: 0.2792047847 | N13: -9.139730163 | O13: -5.09947606 | P13: -3.961520237 | Q13: -1.150036703 | R13: 2.98293785 | S13: 6.070020523 | T13: -4.394553078 | U13: 1.527548055 | V13: -4.5 | W13: 0.9 | X13: 2 | Y13: 1.4 | AB13: 0.7157887213 | AC13: 0.5000528451 | AD13: -3.52721891 | AE13: -0.9044534988 | AF13: 26.62096211 | AG13: 26.01631018 | AH13: 1.301003238 | AI13: 2.163507531 | AJ13: -5.801497806 | AK13: -4.601140307
A14: Instituto Complutense de Análisis Económico (ICAE-UCM) | B14: -1.3 | F14: -2.2 | H14: -7.8 | J14: -11.86 | L14: -6.7 | N14: -15.3 | P14: -3.5 | R14: 4.8 | T14: -2.6 | V14: -4 | X14: 2.8 | AB14: 0.7 | AD14: -3.4 | AF14: 27.5 | AH14: -0.2 | AJ14: -6
A15: Instituto de Estudios Económicos (IEE) | B15: -1.538 | F15: -2.5 | H15: -6.5 | J15: -6.473684211 | L15: -3 | N15: -8.5 | P15: -3.94 | R15: 4.6 | T15: -3 | X15: 2.2 | AB15: 1 | AD15: -3 | AF15: 26.5 | AH15: 0.1 | AJ15: -5.5
A16: Instituto de Macroeconomía y Finanzas (Universidad CJC) | B16: -1.4 | C16: 0.9 | F16: -2.1 | G16: 0.6 | H16: -3.6 | I16: -2.5 | J16: -5.4 | K16: 1.6 | L16: -1.8 | M16: 6.8 | N16: -7.7 | O16: -0.5 | P16: -3.1 | Q16: 0.2 | R16: 3.2 | S16: 4.1 | T16: -3.1 | U16: 1.3 | V16: -4 | W16: -1 | X16: 2.3 | Y16: 1.5 | AD16: -3.6 | AE16: -0.9 | AF16: 27.1 | AG16: 27.4 | AH16: 0.5 | AI16: -0.5 | AJ16: -6 | AK16: -4.5
A17: Instituto Flores de Lemus (IFL-UC3M) | B17: -1.640588233 | C17: 0.004836053352 | F17: -2.551546311 | G17: 0.1907624561 | H17: -6.289579117 | I17: -3.743379757 | J17: -7.539870995 | K17: -3.416520054 | L17: -6.894684986 | M17: -2.456726286 | N17: -9.364692899 | O17: -4.966397381 | R17: 3.20384593 | S17: 4.316677894 | T17: -4.784396212 | U17: 0.273226522 | V17: -5.119040571 | W17: -3.537907643 | X17: 2.1 | Y17: 1.7 | AF17: 27.2 | AG17: 27.3
A18: Intermoney | B18: -2 | F18: -3.8 | H18: -5.2 | J18: -11.4 | L18: -13.5 | N18: -11.1 | P18: -5.4 | R18: 0.8 | T18: -10.4 | X18: 1.1 | AB18: -1 | AD18: -4.2 | AF18: 27.9 | AH18: 1 | AJ18: -6.1
A19: La Caixa | B19: -1.3 | C19: 0.8 | F19: -2.998603177 | G19: 0.05182508244 | H19: -3.983428882 | I19: -2.156028151 | J19: -7.571587485 | K19: -1.095421431 | L19: -4.588042311 | M19: 1.812792807 | N19: -9.141244642 | O19: -2.61953615 | P19: -4 | Q19: -0.6 | R19: 4.4 | S19: 4.2 | T19: -4.2 | U19: 0.4 | V19: -1.1 | W19: 4 | X19: 2.1 | Y19: 1.6 | AB19: -0.7 | AC19: 1 | AD19: -3.2 | AE19: 0.3 | AF19: 26.4 | AG19: 25.7 | AH19: 1 | AI19: 2 | AJ19: -6.2 | AK19: -4.4
A20: Repsol | B20: -1.434391343 | C20: 0.8200151465 | F20: -2.742151392 | G20: -0.3728325688 | H20: -4.005007824 | I20: -1.64557418 | J20: -5.748229397 | K20: 0.7686503883 | L20: -3.142662916 | M20: 6.341159554 | N20: -6.468208738 | O20: -1.580024379 | P20: -3.522117442 | Q20: -1.5 | R20: 5.32256234 | S20: 6.02113636 | T20: -3.27305761 | U20: 2.062181326 | V20: -3.4 | W20: 0.5 | X20: 2.1 | Y20: 1.7 | AB20: 0.3 | AC20: 0.1 | AD20: -3.1 | AE20: -1 | AF20: 26.9 | AG20: 26 | AH20: 0.5 | AI20: 0.8 | AJ20: -5.2 | AK20: -4
A21: Santander | B21: -1.4 | C21: 0.9 | F21: -2.9 | G21: 0.5 | H21: -5 | I21: -3 | J21: -6.8 | K21: -0.9 | L21: -4.2 | M21: 2.5 | N21: -7.9 | O21: -2.9 | P21: -4 | Q21: -0.5 | R21: 5 | S21: 5.7 | T21: -4.6 | U21: 1.7 | X21: 1.9 | Y21: 2 | AB21: 0.2 | AC21: 0.4 | AD21: -2.7 | AE21: 0.4 | AF21: 26.7 | AG21: 26 | AH21: 0.2 | AI21: 0.5
A22: Solchaga Recio & asociados | B22: -1.8 | C22: 0.2 | F22: -3.1 | G22: -0.5 | H22: -4.5 | I22: -3.5 | J22: -8.1 | K22: -3.6 | L22: -5.1 | M22: -0.5 | N22: -10.6 | O22: -5.5 | P22: -4.4 | Q22: -1.7 | R22: 3.5 | S22: 5.7 | T22: -4.9 | U22: 0.5 | X22: 1.8 | Y22: 1.6 | AD22: -3.5 | AE22: -0.8 | AF22: 27.5 | AG22: 27.3 | AH22: 0.3 | AI22: 2 | AJ22: -5.5 | AK22: -4.2
A23: Caja Madrid
A24: Barclays
A25: Oxford Economics
A26: Bank of America - Merrill | B26: -1.7 | C26: 0.2 | J26: -8 | K26: -2.1 | X26: 2 | Y26: 1.4
A27: Goldman Sachs | B27: -1.7 | C27: -0.2 | F27: -2.8 | G27: 0 | J27: -8.1 | K27: -4 | X27: 2.2 | Y27: 1.5
A28: HSBC | B28: -1.9 | C28: -0.2 | F28: -3.2 | G28: -0.9 | J28: -7.4 | K28: -3.8 | X28: 2.4 | Y28: 1.4
A29: UBS | B29: -1.7 | C29: 0 | F29: -3 | G29: -0.4 | J29: -7.8 | K29: -2.6 | X29: 2 | Y29: 2
A30: EIU | B30: -1.7 | C30: 0.1 | F30: -3.2 | G30: 0 | J30: -6.4 | K30: -2.1 | X30: 1.5 | Y30: 0.8
A31: Citigroup | B31: -2.2 | C31: -2.1 | F31: -4 | G31: -1.4 | J31: -7.5 | K31: -7.7 | X31: 1.8 | Y31: 0.7
A32: IHS Economics | B32: -1.9 | C32: -0.6 | F32: -3.1 | G32: -0.5 | J32: -5.6 | K32: -0.8 | X32: 1.8 | Y32: 1.9
A33: ING Financial Markets | B33: -1.3 | C33: 0.5 | F33: -2.1 | G33: 0.2 | J33: -5.2 | K33: 0.9 | X33: 1.9 | Y33: 1.2
A34: MAX | B34: =QUARTILE(B4:B33,4) -> -1 | C34: =QUARTILE(C4:C33,4) -> 1.091417067 | F34: -1 | G34: 0.6 | H34: -3.113560499 | I34: -0.6 | J34: -0.9 | K34: 2.621498729 | L34: -1.731804607 | M34: 6.8 | N34: -6.468208738 | O34: 0.267944353 | P34: -1.7 | Q34: 0.2 | R34: 6.264329151 | S34: 8.155943223 | T34: -1 | U34: 5.764596896 | V34: -1.1 | W34: 4 | X34: 2.8 | Y34: 2 | AB34: 1 | AC34: 1 | AD34: -2.249090472 | AE34: 1.1 | AF34: 27.9 | AG34: 27.4 | AH34: 1.301003238 | AI34: 2.5 | AJ34: -5.1 | AK34: -4
A35: MIN | B35: =QUARTILE(B4:B33,0) -> -2.2 | C35: =QUARTILE(C4:C33,0) -> -2.1 | F35: -4 | G35: -1.4 | H35: -7.8 | I35: -4 | J35: -11.86 | K35: -7.7 | L35: -13.5 | M35: -3.4 | N35: -15.3 | O35: -5.5 | P35: -5.4 | Q35: -1.7 | R35: 0.8 | S35: 4.1 | T35: -10.4 | U35: -0.8 | V35: -5.119040571 | W35: -3.537907643 | X35: 1.1 | Y35: 0.7 | AB35: -1 | AC35: 0.1 | AD35: -4.2 | AE35: -1 | AF35: 24.5 | AG35: 25.53068494 | AH35: -2.5 | AI35: -0.5 | AJ35: -6.2 | AK35: -4.8
A36: Primer cuartil | B36: =QUARTILE(B4:B33,1) -> -1.7 | C36: =QUARTILE(C4:C33,1) -> 0.05241802668 | F36: -3.1 | G36: -0.355758897 | H36: -6.3 | I36: -3.05 | J36: -7.9 | K36: -3.081489872 | L36: -6.7 | M36: -0.1103976076 | N36: -10.18593402 | O36: -4.53319869 | P36: -4.375 | Q36: -1.087527528 | R36: 3.2 | S36: 4.608338947 | T36: -4.692198106 | U36: 0.65 | V36: -4 | W36: -1.3 | X36: 1.870833333 | Y36: 1.2 | AB36: -0.6 | AC36: 0.2 | AD36: -3.5 | AE36: -0.725 | AF36: 26.55 | AG36: 26.00815509 | AH36: 0.1 | AI36: 0.8 | AJ36: -5.981645131 | AK36: -4.593445787
A37: Tercer cuartil | B37: =QUARTILE(B4:B33,3) -> -1.4 | C37: =QUARTILE(C4:C33,3) -> 0.8100075732 | F37: -2.512886578 | G37: 0.1 | H37: -3.991714441 | I37: -1.750934299 | J37: -6.4 | K37: -0.5307086164 | L37: -3.256997187 | M37: 3.3 | N37: -8.025 | O37: -1.69001219 | P37: -3.892094532 | Q37: -0.3898166316 | R37: 5 | S37: 5.91056818 | T37: -3.1 | U37: 2.031090663 | V37: -3.4 | W37: 1.45 | X37: 2.15 | Y37: 1.7 | AB37: 0.711841541 | AC37: 0.6500264226 | AD37: -3 | AE37: 0.274183723 | AF37: 27.15 | AG37: 26.9 | AH37: 0.8 | AI37: 2 | AJ37: -5.5 | AK37: -4.15
A38: Gobierno (septiembre 2012) | B38: -0.5 | C38: 1.2 | F38: -1.4 | G38: 1 | H38: -8.2 | I38: -6.4 | J38: -2 | K38: 1.4 | P38: -2.8 | Q38: -0.3 | R38: 6 | S38: 7.1 | T38: -1.5 | U38: 3.3 | AB38: 1.5 | AC38: 0.5 | AD38: -0.2 | AE38: 1.1 | AF38: 24.3 | AG38: 23.3 | AH38: 0 | AI38: 1 | AJ38: -4.5 | AK38: -2.8
A39: Gobierno plan de estabilidad | B39: -1.3 | C39: 0.5 | D39: 0.9 | E39: 1.3 | F39: -2.5 | G39: 0 | H39: -4.4 | I39: -3.1 | J39: -7.1 | K39: -0.9 | R39: 4.1 | S39: 5.9 | T39: -3.7 | U39: 2.6 | AJ39: -6.3 | AK39: -5.5 | AL39: -4.1 | AM39: -2.7
A40: Banco de España (enero 2012) | B40: 0.2 | F40: -0.5 | H40: -3.3 | J40: -2.2 | L40: -0.9 | N40: -3.1 | R40: 5.9 | T40: 1.2 | X40: 1.2 | AB40: 0.1 | AD40: -0.7 | AF40: 23.3 | AH40: 0 | AJ40: -3
A41: CE (febrero 2013) | B41: -1.4 | C41: 0.8 | F41: -2.7 | G41: -0.2 | H41: -5.4 | I41: -1.1 | J41: -6.6 | K41: -1 | P41: -4 | Q41: -0.5 | R41: 4.2 | S41: 5.7 | T41: -3.8 | U41: 2 | X41: 1.7 | Y41: 1 | AD41: -3.1 | AE41: 0 | AF41: 26.9 | AG41: 26.6 | AH41: 1 | AI41: 2.5 | AJ41: -6.7 | AK41: -7.2
A42: FMI (WEO april 2013) | B42: -1.558 | C42: 0.738 | D42: 1.352 | E42: 1.46 | X42: 1.94 | Y42: 1.504 | Z42: 1.498 | AA42: 1.387 | AJ42: -6.606 | AK42: -6.937 | AL42: -6.588 | AM42: -6.195
A43: OCDE (noviembre 2012) | B43: -1.4 | C43: 0.5 | F43: -2.3 | G43: -0.5 | H43: -4 | I43: -0.8 | J43: -9 | K43: -2.7 | P43: -4 | Q43: -0.9 | R43: 6.4 | S43: 6.2 | T43: -1.3 | U43: 2.4 | X43: 1.2 | Y43: 0.4 | AF43: 26.9 | AG43: 26.8 | AH43: 0.5 | AI43: 1.8 | AJ43: -6.3 | AK43: -5.9
A44: Consenso Ampliado | B44: =AVERAGE(B4:B33) -> -1.571756581 | C44: =AVERAGE(C4:C33) -> 0.3516461005 | F44: =AVERAGE(F4:F33) -> -2.838859913 | G44: -0.1509916637 | H44: -5.140979792 | I44: -2.39705611 | J44: -7.150729133 | K44: -1.618681273 | L44: -5.326605194 | M44: 1.757131749 | N44: -9.303432693 | O44: -2.746499308 | P44: -4.00842963 | Q44: -0.7303423426 | R44: 4.040719751 | S44: 5.430918533 | T44: -4.130238907 | U44: 1.681836853 | V44: -3.579893397 | W44: 0.1802989082 | X44: 2.016478082 | Y44: 1.497417971 | AB44: =AVERAGE(AB4:AB33) -> 0.1115788721 | AC44: 0.4571504064 | AD44: -3.242315575 | AE44: -0.199932309 | AF44: 26.76350485 | AG44: 26.47730964 | AH44: 0.3285075666 | AI44: 1.232588245 | AJ44: -5.687719881 | AK44: -4.398808325
A45: Consenso Panel FUNCAS | B45: -1.491443563 | C45: 0.6925240207 | F45: -2.758439881 | G45: -0.02145444004 | H45: -5.140979792 | I45: -2.39705611 | J45: -7.214194031 | K45: -1.001977953 | L45: -5.326605194 | M45: 1.757131749 | N45: -9.303432693 | O45: -2.746499308 | P45: -4.00842963 | Q45: -0.7303423426 | R45: 4.040719751 | S45: 5.430918533 | T45: -4.130238907 | U45: 1.681836853 | V45: -3.579893397 | W45: 0.1802989082 | X45: 2.044468854 | Y45: 1.569374222 | AB45: 0.1115788721 | AC45: 0.4571504064 | AD45: -3.242315575 | AE45: -0.199932309 | AF45: 26.76350485 | AG45: 26.47730964 | AH45: 0.3285075666 | AI45: 1.232588245 | AJ45: -5.687719881 | AK45: -4.398808325
A46: Realizado | B46: -1.224300882 | C46: 1.38879934 | F46: -2.272084617 | G46: 2.422115026 | H46: -2.912704439 | I46: 0.1106174733 | J46: -3.707710643 | K46: 4.13864399 | R46: 4.298644756 | S46: 4.190315969 | T46: -0.4269905213 | U46: 7.650020038 | AF46: 25.73 | AG46: 24.4 | AJ46: -6.794919085 | AK46: -5.833047543

Sheet 2014
B1: PIB | F1: Consumo | H1: Consumo | J1: Formac. bruta | L1: FBCF maquinaria | N1: FBCF | P1: Demanda | R1: Exportaciones | T1: Importaciones | V1: Producción | X1: IPC | AB1: Costes | AD1: Empleo (4) | AF1: Paro (EPA) | AH1: Saldo B. Pagos c/c | AJ1: Saldo AA.PP.
F2: hogares | H2: público | J2: de capital fijo | L2: y bienes equipo | N2: Construcción | P2: nacional | R2: bienes y serv. | T2: bienes y serv. | V2: industrial (IPI) | X2: (media anual) | AB2: laborales (3) | AF2: (% pob. activa) | AH2: (% del PIB) (5) | AJ2: (% del PIB) (7)
B3: 2014 | C3: 2015 | D3: 2016 | E3: 2017 | F3: 2014 | G3: 2015 | H3: 2014 | I3: 2015 | J3: 2014 | K3: 2015 | L3: 2014 | M3: 2015 | N3: 2014 | O3: 2015 | P3: 2014 | Q3: 2015 | R3: 2014 | S3: 2015 | T3: 2014 | U3: 2015 | V3: 2014 | W3: 2015 | X3: 2014 | Y3: 2015 | Z3: 2016 | AA3: 2017 | AB3: 2014 | AC3: 2015 | AD3: 2014 | AE3: 2015 | AF3: 2014 | AG3: 2015 | AH3: 2014 | AI3: 2015 | AJ3: 2014 | AK3: 2015 | AL3: 2016 | AM3: 2017
A4: Analistas Financieros Internacionales (AFI) | B4: 0.8 | F4: 0.6 | H4: -1.3 | J4: -1.4 | L4: 2.6 | N4: -4.4 | P4: -0.2 | R4: 5.6 | T4: 3.2 | X4: 0.5 | AD4: 0.6 | AF4: 25.7 | AH4: 1.5 | AJ4: -5.8
A5: Banco Bilbao Vizcaya Argentaria (BBVA) | B5: 0.9431141391 | C5: 1.90365251 | F5: 0.9274754044 | G5: 1.254819997 | H5: -1.064766645 | I5: 1.338384536 | J5: 0.2087189424 | K5: 5.191258586 | L5: 5.816327878 | M5: 7.849185963 | N5: -3.816442505 | O5: 3.096976676 | P5: 0.3553080532 | Q5: 1.985071866 | R5: 6.516962175 | S5: 6.710269478 | T5: 5.161867627 | U5: 7.411731133 | X5: 0.527878164 | Y5: 1.049898964 | AB5: 0.2 | AC5: 0.5 | AD5: 0.3475754302 | AE5: 0.900226335 | AF5: 25.57614263 | AG5: 24.7811926 | AH5: 1.639038475 | AI5: 1.666321255 | AJ5: -5.835694907 | AK5: -5.144764521
A6: Bankia | B6: 1.1 | C6: 1.5 | F6: 1 | G6: 1.1 | H6: -1.6 | I6: -0.6 | J6: -1 | K6: 2.6 | L6: 5.4 | M6: 7 | N6: -4.7 | O6: 0 | P6: 0 | Q6: 1 | R6: 5.8 | S6: 6.2 | T6: 3 | U6: 5.3 | V6: 1.5 | W6: 2.5 | X6: 0.5 | Y6: 0.9 | AB6: 0.6 | AC6: 0.7 | AD6: 0.2 | AE6: 0.6 | AF6: 25.3 | AG6: 23.8 | AH6: 2.5 | AI6: 3
A7: CatalunyaCaixa | B7: 0.9 | C7: 1.5 | F7: 1.5 | G7: 1.5 | H7: -4.7 | I7: -1.1 | J7: 1.2 | K7: 0.7 | L7: 6.3 | M7: 2.3 | N7: -3.5 | O7: -0.8 | P7: 0.16 | Q7: 0.8 | R7: 5.6 | S7: 5.5 | T7: 4.3 | U7: 5.2 | X7: 0.6 | Y7: 1.5 | AD7: 0.3 | AE7: 0.5 | AF7: 25.7 | AG7: 25
A8: Cemex | B8: 1.1 | C8: 1.7 | F8: 1.1 | G8: 1.5 | H8: -2.1 | I8: -0.2 | J8: 1.5 | K8: 3.1 | L8: 4.6 | M8: 5.5 | N8: -2.3 | O8: 0 | P8: 0.5 | Q8: 1.4 | R8: 6.1 | S8: 6.2 | T8: 4.7 | U8: 5.9 | X8: 0.6 | Y8: 1.2 | AD8: 0.7 | AE8: 1 | AF8: 25.5 | AG8: 24.7 | AH8: 1.7 | AI8: 1.5 | AJ8: -5.8 | AK8: -4.2
A9: Centro de Estudios Economía de Madrid (CEEM-URJC) | B9: 1.188250641 | C9: 1.941759588 | F9: 0.44 | G9: 1.36 | H9: -0.8 | I9: 0.2 | J9: -0.9214851702 | K9: 2.060802298 | L9: 2.5 | M9: 2.6 | N9: -3.3 | O9: 1.55 | P9: -0.07302612849 | Q9: 1.190449152 | R9: 5.74 | S9: 5.25 | T9: 2.2 | U9: 3.5 | X9: 0.3666666667 | Y9: 0.65 | AD9: 0.6844457959 | AE9: 1.186043429 | AF9: 25.17543757 | AG9: 24.13625828 | AH9: 1.97364095 | AI9: 2.728255524 | AJ9: -5.7 | AK9: -4.8
A10: Centro de Predicción Económica (CEPREDE-UAM) | B10: 1.292520827 | C10: 2.203775771 | F10: 1.1 | G10: 1.4 | H10: -1.3 | I10: 1.1 | J10: 0.3 | K10: 2.8 | L10: 5.7 | M10: 3.1 | N10: -3.5 | O10: 2.4 | P10: 0.6 | Q10: 1.6 | R10: 5.4 | S10: 6.5 | T10: 3.5 | U10: 5 | V10: 1.1 | W10: 2.2 | X10: 0.8 | Y10: 1.6 | AB10: 0.2 | AC10: 0.7 | AD10: 0.5 | AE10: 1.3 | AF10: 25.3 | AG10: 24.3 | AH10: 1.8 | AI10: 2.6 | AJ10: -6.6 | AK10: -6.5
A11: CEOE | B11: 1.2 | C11: 1.8 | F11: 1.4 | G11: 1.6 | H11: -1.7 | I11: -1.4 | J11: 0.3 | K11: 3.9 | L11: 8.6 | M11: 8.1 | N11: -5.9 | O11: 0.9 | P11: 0.5 | Q11: 1.5 | R11: 5.6 | S11: 5.7 | T11: 3.8 | U11: 4.7 | V11: 2.1 | W11: 4.5 | X11: 0.4 | Y11: 0.9 | AB11: 0.1 | AC11: 0.1 | AD11: 0.6 | AE11: 1.2 | AF11: 25.1 | AG11: 23.8 | AH11: 1.2 | AI11: 1.9 | AJ11: -6 | AK11: -5.4
A12: ESADE | B12: 1 | F12: 1.2 | H12: -2.3 | J12: -1.2 | L12: -0.9 | N12: -3.6 | P12: -0.6 | R12: 4.5 | T12: 1 | X12: 1 | AD12: 0.5 | AF12: 25.5 | AH12: 1.5 | AJ12: -5.9
A13: Fundación Cajas de Ahorros (FUNCAS) | B13: 1.184384779 | C13: 1.795062502 | F13: 1.3 | G13: 1.53 | H13: -1.288777867 | I13: -0.9152315131 | J13: 0.6483218374 | K13: 2.54774635 | L13: 4.087121986 | M13: 4.38359045 | N13: -1.933242157 | O13: 1.119226375 | P13: 0.7307738119 | Q13: 1.255275996 | R13: 3.554193102 | S13: 4.842925879 | T13: 2.338897037 | U13: 3.504027868 | V13: 1.5 | W13: 2.4 | X13: 0.3 | Y13: 0.6 | AB13: 0.3514335101 | AC13: 0.5003280058 | AD13: 0.5007384112 | AE13: 1.103646212 | AF13: 25.12338646 | AG13: 23.47489277 | AH13: 1.306898781 | AI13: 1.711351959 | AJ13: -5.996224766 | AK13: -5.470283078
A14: Instituto Complutense de Análisis Económico (ICAE-UCM) | B14: 0.9 | C14: 1.7 | F14: 0.8 | G14: 1.3 | H14: -1.5 | I14: 0 | J14: 0.2 | K14: 2 | L14: 4.5 | M14: 6 | N14: -3.5 | O14: 0 | P14: 0.1 | Q14: 1.4 | R14: 6.5 | S14: 7.1 | T14: 2.9 | U14: 6.7 | V14: 1.2 | W14: 2.3 | X14: 0.6 | Y14: 1.2 | AD14: 0.3 | AE14: 0.9 | AF14: 25.3 | AG14: 24.5 | AH14: 1.6 | AI14: 1.4 | AJ14: -5.8 | AK14: -4.7
A15: Instituto de Estudios Económicos (IEE) | B15: 1 | F15: 0.6 | H15: -1.8 | J15: -0.115 | L15: 5 | N15: -5 | P15: -0.142 | R15: 6 | T15: 2.8 | X15: 0.5 | AB15: 0.3 | AD15: 0.1 | AF15: 26 | AH15: 2.1 | AJ15: -5.8
A16: Instituto de Macroeconomía y Finanzas (Universidad CJC) | B16: 1.003320893 | F16: 0.1968487775 | H16: -1.872270543 | J16: 1.344147471 | L16: 7.629329564 | N16: -2.274747235 | P16: -0.02294188159 | R16: 4.472321442 | T16: 1.632164451 | V16: 0.9 | X16: 0.9 | AB16: -0.9 | AD16: -0.5169710319 | AF16: 25.44520396 | AH16: 2 | AJ16: -5.8
A17: Instituto Flores de Lemus (IFL-UC3M) | B17: 0.9 | C17: 1.6 | F17: 1.547830384 | G17: 1.814061851 | H17: -3.352278765 | I17: -0.450928382 | J17: 0.3398809611 | K17: 1.330308014 | L17: 7.73406038 | M17: 5.816595137 | N17: -4.773826763 | O17: -1.832606208 | P17: 0.2853481275 | Q17: 1.217811489 | R17: 6.279707228 | S17: 6.424472498 | T17: 4.684643503 | U17: 5.672224167 | V17: 1.3 | W17: 3.3 | X17: 0.4686392032 | Y17: 1.063252332
A18: Intermoney | B18: 1.1 | C18: 2.1 | F18: 1.2 | G18: 1.5 | H18: -1.9 | I18: -0.5 | J18: -1 | K18: 2.6 | L18: 4.1 | M18: 6.2 | N18: -4.7 | O18: 0.4 | P18: 0.8 | Q18: 1.9 | R18: 5 | S18: 5.1 | T18: 4.3 | U18: 4.7 | V18: 0.9 | W18: 3.4 | X18: 0.5 | Y18: 1.2 | AD18: 0.3 | AE18: 1.3 | AF18: 25.5 | AG18: 24.6 | AH18: 1.3 | AI18: 1.4 | AJ18: -5.9 | AK18: -4.7
A19: La Caixa | B19: 0.9728463107 | C19: 1.537506103 | F19: 1.149701308 | G19: 0.8300873587 | H19: -3.637663203 | I19: -0.5351523751 | J19: 1.005806404 | K19: 1.360538428 | L19: 6.569914287 | M19: 3.603059665 | N19: -2.413482804 | O19: -0.0496125625 | P19: 0.1496990679 | Q19: 0.645209518 | R19: 5.420851308 | S19: 4.945412647 | T19: 3.180713682 | U19: 2.574440688 | V19: 1.043009984 | W19: 2.370781119 | X19: 0.5751570465 | Y19: 1.344056162 | AB19: 0.7889608553 | AC19: 1.673137018 | AD19: 0.6390100931 | AE19: 1.157501136 | AF19: 25.22484856 | AG19: 24.14040188 | AH19: 1.295915334 | AI19: 1.595915334 | AJ19: -5.8 | AK19: -4.2
A20: Repsol | B20: 0.7593062402 | C20: 1.535800614 | F20: 0.760181683 | G20: 1.022373044 | H20: -1.301212312 | I20: -0.4069938916 | J20: -1.100822123 | K20: 0.6592251349 | L20: 5.910849599 | M20: 5.349895449 | N20: -6.71720398 | O20: -2.17131022 | P20: -0.02413415322 | Q20: 0.6445211656 | R20: 5.091101262 | S20: 6.79052078 | T20: 3.01141191 | U20: 4.691819761 | V20: 1.9 | W20: 1.7 | X20: 0.43 | Y20: 1.11 | AB20: -0.2 | AC20: 0.4 | AD20: 0.1 | AE20: 0.5012520859 | AF20: 25.59626359 | AG20: 24.54828327 | AH20: 1.7 | AI20: 2.4 | AJ20: -6
A21: Santander | B21: 1.1 | C21: 2 | F21: 1.3 | G21: 1.7 | H21: -3.1 | I21: -0.2 | J21: 1.6 | K21: 3.5 | L21: 7.9 | M21: 10.4 | N21: -2 | O21: 0.1 | P21: 0.4 | Q21: 1.6 | R21: 4.841189719 | S21: 4.447734107 | T21: 3.1 | U21: 3.4 | V21: 2 | W21: 3.1 | X21: 0.5 | Y21: 1 | AB21: 0 | AC21: 1 | AD21: 0.9 | AE21: 1.7 | AF21: 25 | AG21: 23.5 | AH21: 2 | AI21: 2.5 | AJ21: -5.8 | AK21: -4.2
A22: Solchaga Recio & asociados | B22: 1.3 | C22: 2 | F22: 1.2 | G22: 1.6 | H22: -1.4 | I22: -0.5 | J22: 0.4 | K22: 2.6 | L22: 5.7 | M22: 6.6 | N22: -3.3 | O22: -0.3 | P22: 0.4 | Q22: 1.3 | R22: 5.5 | S22: 6.4 | T22: 3.5 | U22: 5.1 | X22: 0.5 | Y22: 1 | AD22: 0.5 | AE22: 1.5 | AF22: 24.9 | AG22: 23.4 | AH22: 1.4 | AI22: 1.5 | AJ22: -5.8 | AK22: -6.1
A23: Caja Madrid
A24: Barclays
A25: Oxford Economics | B25: 0.8 | C25: 1.2 | F25: 1.1 | G25: 1.2 | J25: 1.2 | K25: 1.9 | X25: 0.1 | Y25: 0.6
A26: Bank of America - Merrill | B26: 0.9 | C26: 1.2 | F26: 0.8 | G26: 1 | J26: 0.7 | K26: 2.1 | X26: 0.2 | Y26: 0.8
A27: Goldman Sachs | B27: 0.9 | C27: 1.2 | F27: 0.4 | G27: 0.7 | J27: 0.5 | K27: 2 | X27: 0.3 | Y27: 0.6
A28: HSBC | B28: 0.7 | C28: 1.1 | F28: 0.8 | G28: 0.8 | J28: 0 | K28: 1.6 | X28: 0.2 | Y28: 0.4
A29: UBS | B29: 0.8 | C29: 1.3 | F29: 0.5 | G29: 0.8 | J29: 0.3 | K29: 0.9 | X29: 0.1 | Y29: 1.6
A30: EIU | B30: 0.9 | C30: 1.2 | F30: 1.3 | G30: 1.1 | J30: 1.3 | K30: 1.3 | X30: 1 | Y30: 2
A31: Citigroup | B31: 0.9 | C31: 1.2 | F31: 1.2 | G31: 1.2 | J31: 0 | K31: 1.2 | X31: 0 | Y31: 0.1
A32: IHS Economics | B32: 0.6 | C32: 1.3 | F32: 1 | G32: 1.3 | J32: 0.9 | K32: 0.8 | X32: 0 | Y32: 0.6
A33: ING Financial Markets
A34: MAX | B34: =QUARTILE(B4:B33,4) -> 1.3 | C34: =QUARTILE(C4:C33,4) -> 2.203775771 | F34: 1.547830384 | G34: 1.814061851 | H34: -0.8 | I34: 1.338384536 | J34: 1.6 | K34: 5.191258586 | L34: 8.6 | M34: 10.4 | N34: -1.933242157 | O34: 3.096976676 | P34: 0.8 | Q34: 1.985071866 | R34: 6.516962175 | S34: 7.1 | T34: 5.161867627 | U34: 7.411731133 | V34: 2.1 | W34: 4.5 | X34: 1 | Y34: 2 | AB34: 0.7889608553 | AC34: 1.673137018 | AD34: 0.9 | AE34: 1.7 | AF34: 26 | AG34: 25 | AH34: 2.5 | AI34: 3 | AJ34: -5.7 | AK34: -4.2
A35: MIN | B35: =QUARTILE(B4:B33,0) -> 0.6 | C35: =QUARTILE(C4:C33,0) -> 1.1 | F35: 0.1968487775 | G35: 0.7 | H35: -4.7 | I35: -1.4 | J35: -1.4 | K35: 0.6592251349 | L35: -0.9 | M35: 2.3 | N35: -6.71720398 | O35: -2.17131022 | P35: -0.6 | Q35: 0.6445211656 | R35: 3.554193102 | S35: 4.447734107 | T35: 1 | U35: 2.574440688 | V35: 0.9 | W35: 1.7 | X35: 0 | Y35: 0.1 | AB35: -0.9 | AC35: 0.1 | AD35: -0.5169710319 | AE35: 0.5 | AF35: 24.9 | AG35: 23.4 | AH35: 1.2 | AI35: 1.4 | AJ35: -6.6 | AK35: -6.5
A36: Primer cuartil | B36: =QUARTILE(B4:B33,1) -> 0.9 | C36: =QUARTILE(C4:C33,1) -> 1.25 | F36: 0.7800908415 | G36: 1.061186522 | H36: -2.2 | I36: -0.5675761875 | J36: -0.0575 | K36: 1.315154007 | L36: 4.3 | M36: 3.993325058 | N36: -4.7 | O36: -0.1748062813 | P36: -0.02353801741 | Q36: 1.095224576 | R36: 5.045550631 | S36: 5.175 | T36: 2.85 | U36: 4.097923815 | V36: 1.071504992 | W36: 2.31769528 | X36: 0.3 | Y36: 0.625 | AB36: 0.025 | AC36: 0.475 | AD36: 0.3 | AE36: 0.9000565837 | AF36: 25.18779031 | AG36: 23.8 | AH36: 1.4 | AI36: 1.5 | AJ36: -5.924056192 | AK36: -5.435141539
A37: Tercer cuartil | B37: =QUARTILE(B4:B33,3) -> 1.1 | C37: =QUARTILE(C4:C33,3) -> 1.851826255 | F37: 1.2 | G37: 1.5 | H37: -1.300606156 | I37: -0.1 | J37: 0.9529032019 | K37: 2.6 | L37: 6.434957143 | M37: 6.8 | N37: -2.856741402 | O37: 1.009613187 | P37: 0.45 | Q37: 1.55 | R37: 5.9 | S37: 6.462236249 | T37: 4.05 | U37: 5.486112084 | V37: 1.7 | W37: 3.25 | X37: 0.5875785233 | Y37: 1.2 | AB37: 0.3385751326 | AC37: 0.775 | AD37: 0.6 | AE37: 1.275 | AF37: 25.55710697 | AG37: 24.58707082 | AH37: 1.97364095 | AI37: 2.5 | AJ37: -5.8 | AK37: -4.45
A38: Gobierno (septiembre 2013) | B38: 0.7 | F38: 0.2 | H38: -2.9 | J38: 0.2 | P38: -0.4 | R38: 5.5 | T38: 2.4 | AB38: 0.3 | AD38: -0.2 | AF38: 25.9 | AH38: 2.8 | AJ38: -5.8 | AK38: -4.2
A39: Gobierno plan de estabilidad | B39: 1.2 | C39: 1.8 | D39: 2.3 | E39: 3 | F39: 1.4 | G39: 1.8 | H39: -1.3 | I39: -1.9 | J39: 0.5 | K39: 3 | R39: 5 | S39: 6.1 | T39: 3.6 | U39: 5 | AJ39: -5.5 | AK39: -4.2 | AL39: -2.8 | AM39: -1.1
A40: Banco de España (marzo 2013) | B40: 0.6 | F40: -0.3 | H40: -1.5 | J40: -0.9 | L40: 1.4 | N40: -2.5 | P40: -0.6 | R40: 5.4 | T40: 2 | X40: 1 | AB40: -0.1 | AD40: -0.6 | AF40: 26.8 | AH40: 3.5 | AJ40: -5.9
A41: CE (febrero 2014) | B41: 1 | C41: 1.7 | F41: 0.6 | G41: 1.1 | H41: -0.9 | I41: -0.2 | J41: 0.1 | K41: 2 | L41: 5.8 | M41: 6.7 | P41: 0.2 | Q41: 1 | R41: 5.4 | S41: 6.4 | T41: 3.3 | U41: 4.9 | X41: 0.3 | Y41: 0.9 | AB41: 0.6 | AC41: 0.6 | AD41: 0.1 | AE41: 1.1 | AF41: 25.7 | AG41: 24.6 | AH41: 1.6 | AI41: 1.8 | AJ41: -5.8 | AK41: -6.5
A42: FMI (WEO april 2014) | B42: 0.868 | C42: 0.962 | D42: 1.128 | E42: 1.172 | X42: 0.271 | Y42: 0.838 | Z42: 0.898 | AA42: 1.044 | AJ42: -5.892 | AK42: -4.882 | AL42: -3.888 | AM42: -2.943
A43: OCDE (noviembre 2013) | B43: 0.5 | C43: 1 | F43: -0.4 | G43: 0.2 | H43: -2.9 | I43: -2.6 | J43: -1.6 | K43: -0.1 | P43: -1.2 | Q43: -0.4 | R43: 5.427939345 | S43: 6.5 | T43: 0.7 | U43: 3.1 | X43: 0.5 | Y43: 0.6 | AD43: -0.6 | AE43: 0.3 | AF43: 26.3 | AG43: 25.6 | AH43: 1.6 | AI43: 3.1 | AJ43: -6.1 | AK43: -5.1
A44: Consenso Ampliado | B44: =AVERAGE(B4:B33) -> 0.9719905122 | C44: =AVERAGE(C4:C33) -> 1.587719873 | F44: =AVERAGE(F4:F33) -> 0.9785939836 | G44: 1.265710533 | H44: -2.000893123 | I44: -0.277994775 | J44: 0.267021049 | K44: 2.119559948 | L44: 5.249873879 | M44: 5.653488444 | N44: -3.769944497 | O44: 0.2941782707 | P44: 0.2062645735 | Q44: 1.295889279 | R44: 5.448227697 | S44: 5.874089026 | T44: 3.279457801 | U44: 4.890282908 | V44: 1.403909999 | W44: 2.777078112 | X44: 0.4617904104 | Y44: 1.00074815 | AB44: =AVERAGE(AB4:AB33) -> 0.1440394365 | AC44: 0.696683128 | AD44: 0.4030443721 | AE44: 1.060619228 | AF44: 25.38562682 | AG44: 24.19150206 | AH44: 1.677381973 | AI44: 1.992449544 | AJ44: -5.89574498 | AK44: -5.0377316
A45: Consenso Panel FUNCAS | B45: 1.039144412 | C45: 1.787837139 | F45: 1.016949345 | G45: 1.40075615 | H45: -2.000893123 | I45: -0.277994775 | J45: 0.1215562275 | K45: 2.463325254 | L45: 5.249873879 | M45: 5.653488444 | N45: -3.769944497 | O45: 0.2941782707 | P45: 0.2062645735 | Q45: 1.295889279 | R45: 5.448227697 | S45: 5.874089026 | T45: 3.279457801 | U45: 4.890282908 | V45: 1.403909999 | W45: 2.777078112 | X45: 0.5562284779 | Y45: 1.087813831 | AB45: 0.1440394365 | AC45: 0.696683128 | AD45: 0.4030443721 | AE45: 1.060619228 | AF45: 25.38562682 | AG45: 24.19150206 | AH45: 1.677381973 | AI45: 1.992449544 | AJ45: -5.89574498 | AK45: -5.0377316
A46: Realizado | B46: 1.38879934 | C46: ='2015'!C39 -> 2.854136116 | D46: ='2015'!D39 -> 2.963069889 | E46: ='2015'!E39 -> 2.956078432 | F46: 2.422115026 | G46: ='2015'!F39 -> 3.3 | H46: 0.1106174733 | I46: ='2015'!H39 -> 0.1 | J46: 4.13864399 | K46: ='2015'!J39 -> 6.326568349 | R46: 4.190315969 | S46: ='2015'!R39 -> 5.424569917 | T46: 7.650020038 | U46: ='2015'!U39 -> 6.274561113 | AF46: 24.4 | AG46: ='2015'!AF39 -> 22.07202696 | AJ46: -5.833047543 | AK46: ='2015'!AJ39 -> -4.190665531

Sheet 2015
B1: PIB | F1: Consumo | H1: Consumo | J1: Formac. bruta | L1: FBCF maquinaria | N1: FBCF | P1: Demanda | R1: Exportaciones | T1: Importaciones | V1: Producción | X1: IPC | AB1: Costes | AD1: Empleo (4) | AF1: Paro (EPA) | AH1: Saldo B. Pagos c/c | AJ1: Saldo AA.PP.
F2: hogares | H2: público | J2: de capital fijo | L2: y bienes equipo | N2: Construcción | P2: nacional | R2: bienes y serv. | T2: bienes y serv. | V2: industrial (IPI) | X2: (media anual) | AB2: laborales (3) | AF2: (% pob. activa) | AH2: (% del PIB) (5) | AJ2: (% del PIB) (7)
B3: 2015 | C3: 2016 | D3: 2017 | E3: 2018 | F3: 2015 | G3: 2016 | H3: 2015 | I3: 2016 | J3: 2015 | K3: 2016 | L3: 2015 | M3: 2016 | N3: 2015 | O3: 2016 | P3: 2015 | Q3: 2016 | R3: 2015 | S3: 2016 | T3: 2015 | U3: 2016 | V3: 2015 | W3: 2016 | X3: 2015 | Y3: 2016 | Z3: 2017 | AA3: 2018 | AB3: 2015 | AC3: 2016 | AD3: 2015 | AE3: 2016 | AF3: 2015 | AG3: 2016 | AH3: 2015 | AI3: 2016 | AJ3: 2015 | AK3: 2016 | AL3: 2017 | AM3: 2018
A4: Analistas Financieros Internacionales (AFI) | B4: 2.5 | C4: 2.2 | F4: 3.1 | G4: 2.3 | H4: 1.4 | I4: 0.9 | J4: 4.9 | K4: 4.6 | L4: 8.1 | M4: 7.1 | N4: 3.2 | O4: 3.4 | P4: 3 | Q4: 2.4 | R4: 5.3 | S4: 5.8 | T4: 7.4 | U4: 6.9 | X4: -0.8 | Y4: 1.1 | AD4: 2.3 | AE4: 1.6 | AF4: 22.6 | AG4: 21.5 | AH4: 0 | AI4: -0.6 | AJ4: -4.5 | AK4: -4
A5: Banco Bilbao Vizcaya Argentaria (BBVA) | B5: 2.667003961 | C5: 2.668260275 | F5: 2.468608021 | G5: 1.659456329 | H5: 1.48717195 | I5: 1.354022034 | J5: 5.176922964 | K5: 6.180103839 | L5: 7.150762644 | M5: 6.33295595 | N5: 3.20787664 | O5: 5.616172554 | P5: 2.712087625 | Q5: 2.430384232 | R5: 6.054313376 | S5: 7.163332092 | T5: 6.803306856 | U5: 7.05161062 | X5: -0.434302594 | Y5: 1.421437238 | AB5: -0.9099232987 | AC5: 0.5918350055 | AD5: 2.619152425 | AE5: 2.327047656 | AF5: 22.45193898 | AG5: 20.8739828 | AH5: 0.9080974985 | AI5: 0.9719373982 | AJ5: -4.212679636 | AK5: -2.847527424
A6: Bankia | B6: 2.7 | C6: 2.6 | F6: 3.6 | G6: 3.2 | H6: 0.4 | I6: 1 | J6: 5 | K6: 5.4 | L6: 9.8 | M6: 9.3 | N6: 2.3 | O6: 2.9 | P6: 3.3 | Q6: 3.2 | R6: 5.6 | S6: 5.4 | T6: 7.9 | U6: 7.9 | V6: 1.5 | X6: -0.6 | Y6: 1.1 | AB6: 0.1 | AC6: 0.6 | AD6: 2.5 | AE6: 2.3 | AF6: 22.5 | AG6: 20.6 | AH6: 0.8 | AI6: 0.7
A7: CatalunyaCaixa | B7: 2.5 | C7: 2.7 | F7: 2.8 | G7: 2 | H7: 0.1 | I7: 0.8 | J7: 4.8 | K7: 3.8 | L7: 7.6 | M7: 5.9 | N7: 2.8 | O7: 1.6 | P7: 2.7 | Q7: 2.12 | R7: 4.9 | S7: 5.2 | T7: 5.5 | U7: 4.1 | X7: -0.4 | Y7: 1.4 | AD7: 2.7 | AE7: 2.5 | AF7: 22.6 | AG7: 20.8
A8: Cemex | B8: 2.5 | C8: 2.5 | F8: 2.7 | G8: 2.4 | H8: 1.5 | I8: 1.2 | J8: 5.3 | K8: 5.7 | L8: 8 | M8: 5.5 | N8: 3 | O8: 5.9 | P8: 2.9 | Q8: 2.8 | R8: 4.9 | S8: 5.4 | T8: 6.8 | U8: 7 | X8: -0.5 | Y8: 1.6 | AD8: 2.7 | AE8: 2.7 | AF8: 22.8 | AG8: 21.4 | AJ8: -4.2 | AK8: -2.8
A9: Centro de Estudios Economía de Madrid (CEEM-URJC) | B9: 2.515305384 | C9: 2.680570526 | F9: 2.6 | G9: 2.3 | H9: 0.9 | I9: 1 | J9: 4.241629802 | K9: 4.464478887 | L9: 5.5 | M9: 5.7 | N9: 3.6 | O9: 3.8 | P9: 2.471077731 | Q9: 2.343053721 | R9: 5.6 | S9: 6.14 | T9: 5.9 | U9: 5.5 | X9: -0.6916666667 | Y9: 0.7166666667 | AD9: 2.362033775 | AE9: 2.447088496 | AF9: 22.50201613 | AG9: 20.52609798 | AH9: 0.9 | AI9: 1.4 | AJ9: -4.3 | AK9: -3
A10: Centro de Predicción Económica (CEPREDE-UAM) | B10: 2 | C10: 2.2 | F10: 1.7 | G10: 2.3 | H10: -0.2 | I10: 0.4 | J10: 3 | K10: 4.6 | L10: 3 | M10: 4.6 | N10: 2.3 | O10: 4.9 | P10: 1.5 | Q10: 2.2 | R10: 6.1 | S10: 6.2 | T10: 5 | U10: 6.4 | V10: 2.5 | W10: 3 | X10: -0.7 | Y10: 1.6 | AB10: 0.4 | AC10: 1.7 | AD10: 1.4 | AE10: 1.5 | AF10: 23.1 | AG10: 21.6 | AH10: 0.5 | AI10: 0.3 | AJ10: -4.9 | AK10: -3.8
A11: CEOE | B11: 2.8 | C11: 2.6 | F11: 3.1 | G11: 2.5 | H11: 0.6 | I11: 0.2 | J11: 5.5 | K11: 4.41481985 | L11: 8.4 | M11: 4.9825 | N11: 3.9 | O11: 4.176651319 | P11: 2.9 | Q11: 2.10778878 | R11: 5.778004497 | S11: 5.585444127 | T11: 6.80900283 | U11: 5.179534987 | V11: 2 | W11: 1.5 | X11: -0.3 | Y11: 1.4 | AB11: 0.4 | AC11: 0.6 | AD11: 2.6 | AE11: 2.4 | AF11: 22.1 | AG11: 20 | AH11: 0.6 | AI11: 0.9 | AJ11: -4.3 | AK11: -3.5
A12: ESADE | B12: 2.2 | F12: 2.3 | H12: 0.7 | J12: 4.2 | L12: 6.6 | N12: 2 | P12: 2 | R12: 5 | T12: 5.5 | X12: 0.7 | AB12: 0.5 | AD12: 1.5 | AF12: 20.5 | AH12: 1.5 | AJ12: -4.2
A13: Fundación Cajas de Ahorros (FUNCAS) | B13: 2.999264646 | C13: 2.793001176 | F13: 3.532104887 | G13: 2.922599832 | H13: 0.6227906081 | I13: 0.5065075574 | J13: 6.551941604 | K13: 5.649371461 | L13: 9.69189293 | M13: 7.7343338 | N13: 5.072717214 | O13: 4.497628257 | P13: 3.480333634 | Q13: 2.98554332 | R13: 5.233385713 | S13: 5.513054377 | T13: 7.275661185 | U13: 6.677738696 | V13: 2.6 | W13: 2.9 | X13: -0.7 | Y13: 0.6 | AB13: 0.302423648 | AC13: 0.6999272033 | AD13: 2.612688605 | AE13: 2.287863599 | AF13: 22.31039666 | AG13: 20.37492067 | AH13: 0.7659138973 | AI13: 0.4508922536 | AJ13: -4.392499816 | AK13: -3.26451726
A14: Instituto Complutense de Análisis Económico (ICAE-UCM) | B14: 2.2 | C14: 2.5 | F14: 3 | G14: 2.9 | H14: 0.4 | I14: 1.1 | J14: 3.2 | K14: 5.2 | L14: 7.6 | M14: 8.7 | N14: 0.8 | O14: 2.8 | P14: 2.6 | Q14: 3 | R14: 5.6 | S14: 7 | T14: 7.7 | U14: 8.2 | V14: 1.6 | W14: 2.6 | X14: -0.3 | Y14: 1.2 | AD14: 1.3 | AE14: 2 | AF14: 23.1 | AG14: 22.2 | AH14: 0.7 | AI14: 0 | AJ14: -4.5 | AK14: -3.5
A15: Instituto de Estudios Económicos (IEE) | B15: 2.8 | C15: 2.8 | F15: 3.2 | G15: 3.1 | H15: 0.8 | I15: 0.5 | J15: 4.4 | K15: 5 | L15: 7.9 | M15: 8.1 | N15: 2.3 | O15: 3.2 | P15: 2.9 | Q15: 2.9 | R15: 5.7 | S15: 6 | T15: 6.2 | U15: 6.5 | V15: 1.9 | W15: 2.2 | X15: -0.4 | Y15: 1 | AB15: 0.5 | AC15: 1 | AD15: 2 | AE15: 2.1 | AF15: 22.2 | AG15: 20 | AH15: 0.4 | AI15: 0.8 | AJ15: -4.4 | AK15: -3
A16: Instituto de Macroeconomía y Finanzas (Universidad CJC)
A17: Instituto Flores de Lemus (IFL-UC3M) | B17: 3.022552419 | C17: 2.755465004 | F17: 3.396465174 | G17: 4.308223771 | H17: 0.1 | I17: -1 | J17: 3.688596951 | K17: 4.785777703 | L17: 7.073850518 | M17: 7.17678542 | N17: 1.376313776 | O17: 3.060822909 | P17: 2.556694456 | Q17: 2.534665215 | R17: 4.710354562 | S17: 4.542419752 | T17: 4.726589741 | U17: 4.185926878 | V17: 1.4 | W17: 3 | X17: -0.5 | Y17: 1.1 | AD17: 2.4 | AE17: 2.1 | AF17: 23
A18: Intermoney | B18: 2.6 | C18: 2.8 | F18: 2.4 | G18: 2.5 | H18: 0.7 | I18: 1.1 | J18: 6 | K18: 6.7 | L18: 6.7 | M18: 5.9 | N18: 2.8 | O18: 4.5 | P18: 2.8 | Q18: 2.8 | R18: 5.5 | S18: 5.8 | T18: 6.3 | U18: 6.2 | V18: 2 | W18: 3.5 | X18: -0.3 | Y18: 1.1 | AD18: 2.4 | AE18: 2.5 | AF18: 22.6 | AG18: 20.8 | AH18: 0.5 | AI18: 0.8 | AJ18: -4.2 | AK18: -2.9
A19: La Caixa | B19: 2.547383206 | C19: 2.256230139 | F19: 2.560369871 | G19: 1.574194371 | H19: 0.5117949182 | I19: 0.09612079002 | J19: 4.613246601 | K19: 4.198178799 | L19: 7.673775599 | M19: 5.302846074 | N19: 2.946035904 | O19: 3.418245753 | P19: 2.558773584 | Q19: 1.790128839 | R19: 5.197961858 | S19: 6.042348222 | T19: 5.486713124 | U19: 4.86118243 | V19: 2.353115514 | W19: 2.804717079 | X19: -0.07468890611 | Y19: 1.907383353 | AB19: 0.365 | AC19: 1.36125 | AD19: 2.2975 | AE19: 1.95 | AF19: 22.73281209 | AG19: 21.47693514 | AH19: 0.5800675105 | AI19: 0.6006606107 | AJ19: -4.791067135 | AK19: -3.298320184
A20: Repsol | B20: 2.813205442 | C20: 2.745989277 | F20: 3.008755785 | G20: 2.696268288 | H20: 0.4435568162 | I20: 0.04238818125 | J20: 5.560941061 | K20: 4.360275061 | L20: 3.067109664 | M20: 7.912594321 | N20: 1.864415437 | O20: 2.081028552 | P20: 2.842602251 | Q20: 2.617650046 | R20: 5.452316053 | S20: 5.864712439 | T20: 6.266926782 | U20: 5.379961839 | V20: 2.2 | W20: 2.5 | X20: -0.7 | Y20: 1.4 | AB20: -0.5 | AC20: 0.2 | AD20: 2.4 | AE20: 1.8 | AF20: 22.9 | AG20: 21.8 | AH20: 0.6 | AI20: 0.2 | AJ20: -4.3 | AK20: -2.8
A21: Santander | B21: 2.529112691 | C21: 2.576623084 | F21: 3.139613442 | G21: 2.57361538 | H21: 0.0922837149 | I21: 1.356361481 | J21: 4.558299432 | K21: 3.73139238 | L21: 7.32030664 | M21: 4.826046025 | N21: 2.474825349 | O21: 2.563923179 | P21: 2.741441144 | Q21: 2.56463022 | R21: 4.917853518 | S21: 4.473133864 | T21: 5.72400945 | U21: 4.65046278 | V21: 2.90797416 | W21: 1.576403433 | X21: -0.7629477734 | Y21: 0.8083333333 | AB21: 0.5 | AC21: 1 | AD21: 2.133318132 | AE21: 2.177955232 | AF21: 22.66171723 | AG21: 20.31065171 | AH21: 0.8270630423 | AI21: 0.98221739 | AJ21: -4.2 | AK21: -2.8
A22: Solchaga Recio & asociados | B22: 2.8 | C22: 2.6 | F22: 3.2 | G22: 2.7 | H22: 0.7 | I22: 0.8 | J22: 5.2 | K22: 5.3 | L22: 7.6 | M22: 5.9 | N22: 4.1 | O22: 5.4 | P22: 3.1 | Q22: 2.9 | R22: 5.1 | S22: 5.4 | T22: 6.6 | U22: 6.5 | X22: -0.7 | Y22: 1 | AD22: 3 | AE22: 2.7 | AF22: 22.3 | AG22: 20.2 | AH22: 0.5 | AI22: 0.7 | AJ22: -4.5 | AK22: -3.4
A23: Caja Madrid
A24: Barclays | B24: 2.6 | C24: 2.3 | F24: 2.3 | G24: 1.8 | J24: 3.7 | K24: 4.3 | X24: -0.2 | Y24: 1
A25: Oxford Economics | B25: 2.5 | C25: 2.5 | F25: 3 | G25: 2.7 | J25: 4 | K25: 3.5 | X25: -0.9 | Y25: 1
A26: Bank of America - Merrill | B26: 2.2 | C26: 1.9 | F26: 2.8 | G26: 2.3 | J26: 3.9 | K26: 2.1 | X26: -0.9 | Y26: 1
A27: Goldman Sachs | B27: 2.2 | C27: 2.1 | F27: 2.6 | G27: 2.9 | J27: 3.3 | K27: 3.9 | X27: -0.7 | Y27: 1.1
A28: HSBC | B28: 2.1 | C28: 1.8 | F28: 3.3 | G28: 2.5 | J28: 2.3 | K28: 2.1 | X28: -1.2 | Y28: 1
A29: UBS | B29: 2 | C29: 2.2 | F29: 2.5 | G29: 2.6 | J29: 2.8 | K29: 3.2 | X29: -0.5
A30: EIU | B30: 2 | C30: 1.6 | F30: 2.6 | G30: 1.5 | J30: 1.2 | K30: 1.6 | X30: -1.1 | Y30: 1.1
A31: Citigroup
A32: IHS Economics
A33: ING Financial Markets
A34: MAX | B34: =QUARTILE(B4:B33,4) -> 3.022552419 | C34: =QUARTILE(C4:C33,4) -> 2.8 | F34: 3.6 | G34: 4.308223771 | H34: 1.5 | I34: 1.356361481 | J34: 6.551941604 | K34: 6.7 | L34: 9.8 | M34: 9.3 | N34: 5.072717214 | O34: 5.9 | P34: 3.480333634 | Q34: 3.2 | R34: 6.1 | S34: 7.163332092 | T34: 7.9 | U34: 8.2 | V34: 2.90797416 | W34: 3.5 | X34: 0.7 | Y34: 1.907383353 | AB34: 0.5 | AC34: 1.7 | AD34: 3 | AE34: 2.7 | AF34: 23.1 | AG34: 22.2 | AH34: 1.5 | AI34: 1.4 | AJ34: -4.2 | AK34: -2.8
A35: MIN | B35: =QUARTILE(B4:B33,0) -> 2 | C35: =QUARTILE(C4:C33,0) -> 1.6 | F35: 1.7 | G35: 1.5 | H35: -0.2 | I35: -1 | J35: 1.2 | K35: 1.6 | L35: 3 | M35: 4.6 | N35: 0.8 | O35: 1.6 | P35: 1.5 | Q35: 1.790128839 | R35: 4.710354562 | S35: 4.473133864 | T35: 4.726589741 | U35: 4.1 | V35: 1.4 | W35: 1.5 | X35: -1.2 | Y35: 0.6 | AB35: -0.9099232987 | AC35: 0.2 | AD35: 1.3 | AE35: 1.5 | AF35: 20.5 | AG35: 20 | AH35: 0 | AI35: -0.6 | AJ35: -4.9 | AK35: -4
A36: Primer cuartil | B36: =QUARTILE(B4:B33,1) -> 2.2 | C36: =QUARTILE(C4:C33,1) -> 2.2 | F36: 2.560369871 | G36: 2.3 | H36: 0.4 | I36: 0.4 | J36: 3.688596951 | K36: 3.782848095 | L36: 6.793462629 | M36: 5.5 | N36: 2.3 | O36: 2.9 | P36: 2.569080188 | Q36: 2.343053721 | R36: 5.025 | S36: 5.4 | T36: 5.556002362 | U36: 5.179534987 | V36: 1.75 | W36: 2.275 | X36: -0.7 | Y36: 1 | AB36: 0.150605912 | AC36: 0.6 | AD36: 2.174363599 | AE36: 2 | AF36: 22.34578224 | AG36: 20.35885343 | AH36: 0.5 | AI36: 0.3377230634 | AJ36: -4.5 | AK36: -3.475
A37: Tercer cuartil | B37: =QUARTILE(B4:B33,3) -> 2.7 | C37: =QUARTILE(C4:C33,3) -> 2.685427895 | F37: 3.139613442 | G37: 2.75 | H37: 0.775 | I37: 1.1 | J37: 5.176922964 | K37: 5.225 | L37: 7.975 | M37: 7.7343338 | N37: 3.20590748 | O37: 4.5 | P37: 2.9 | Q37: 2.9 | R37: 5.6 | S37: 6.042348222 | T37: 6.807578836 | U37: 6.9 | V37: 2.426557757 | W37: 2.975 | X37: -0.4 | Y37: 1.4 | AB37: 0.475 | AC37: 1 | AD37: 2.609516453 | AE37: 2.447088496 | AF37: 22.78320302 | AG37: 21.48270136 | AH37: 0.8135315211 | AI37: 0.875 | AJ37: -4.206339818 | AK37: -2.860645568
A38: Gobierno (septiembre 2014) | B38: 2 | F38: 2.1 | H38: -1 | L38: 6 | N38: 3.1 | R38: 5.2 | T38: 5 | AB38: 1 | AD38: 1.4 | AF38: 22.9 | AH38: 1.1 | AJ38: -4.2 | AK38: -2.8
A39: Gobierno plan de estabilidad | B39: 2.923112393 | C39: 2.854136116 | D39: 2.963069889 | E39: 2.956078432 | F39: 3.3 | G39: 2.945 | H39: 0.1 | I39: -0.4 | J39: 6.326568349 | K39: 5.750053284 | R39: 5.424569917 | S39: 5.978267578 | T39: 6.661039181 | U39: 6.274561113 | AD39: 3.03 | AE39: 2.97 | AF39: 22.07202696 | AG39: 19.81437339 | AJ39: -4.190665531 | AK39: -2.760436107 | AL39: -1.441001173 | AM39: -0.3160332162
A40: Banco de España (marzo 2015) | B40: 2.7 | C40: 2.6 | F40: 3.3 | G40: 2.4 | H40: -0.4 | I40: -0.1 | J40: 5.9 | K40: 6.7 | N40: 1.7 | R40: 5.2 | S40: 5.8 | T40: 6.2 | U40: 6.3 | AD40: 2.7 | AE40: 2.6 | AF40: 22.2 | AG40: 20.5 | AJ40: -4.5 | AK40: -3.9
A41: CE (febrero 2015) | B41: 2.3 | C41: 2.5 | F41: 2.7 | G41: 2.6 | H41: 0.3 | I41: 0.1 | J41: 4.7 | K41: 5.2 | L41: 4.7 | M41: 5.2 | P41: 2.6 | Q41: 2.6 | R41: 5.4 | S41: 6 | T41: 6.9 | U41: 6.7 | X41: -1 | Y41: 1.1 | AB41: 0.7 | AC41: 0.8 | AD41: 1.8 | AE41: 2 | AF41: 22.5 | AG41: 20.7 | AH41: 0.6 | AI41: 0.5 | AJ41: -4.5 | AK41: -3.7
A42: FMI (WEO april 2015) | B42: 2.455 | C42: 2.047 | D42: 1.768 | E42: 1.748 | F42: 3.9 | G42: 2.5 | H42: 0.3 | I42: -1.1 | J42: 4.5 | K42: 3.1 | R42: 6.321 | S42: 5.765 | T42: 8.677 | U42: 5.018 | X42: 0.636 | Y42: 0.945 | Z42: 1.047 | AA42: 1.3 | AD42: 2.01798893 | AE42: 1.475076297 | AF42: 22.562 | AG42: 21.106 | AJ42: -4.3 | AK42: -2.854 | AL42: -2.489 | AM42: -2.039
A43: OCDE (noviembre 2014) | B43: 1.7 | C43: 1.9 | F43: 1.9 | G43: 1.65 | H43: -1.1 | I43: -0.5 | J43: 3.6 | K43: 4.9 | P43: 1.6 | Q43: 1.9 | R43: 4.9 | S43: 5.4 | T43: 4.9 | U43: 5.5 | X43: 0.1 | Y43: 0.5 | AD43: 1.3 | AE43: 1.4 | AF43: 23.1 | AG43: 21.9 | AH43: 0.8 | AI43: 0.9 | AJ43: -4.4 | AK43: -3.3
A44: Consenso Ampliado | B44: =AVERAGE(B4:B33) -> 2.49175311 | C44: =AVERAGE(C4:C33) -> 2.432339145 | F44: =AVERAGE(F4:F33) -> 2.836236687 | G44: 2.509764915 | H44: 0.6254221115 | I44: 0.6679647085 | J44: 4.283663137 | K44: 4.366016583 | L44: 7.154316555 | M44: 6.527533035 | N44: 2.780121351 | O44: 3.753792501 | P44: 2.725722801 | Q44: 2.57022614 | R44: 5.369121643 | S44: 5.736732051 | T44: 6.327344998 | U44: 6.069789308 | V44: 2.087371789 | W44: 2.558112051 | X44: -0.5465442376 | Y44: 1.158861765 | AB44: =AVERAGE(AB4:AB33) -> 0.1657500349 | AC44: 0.861445801 | AD44: 2.290260719 | AE44: 2.199409117 | AF44: 22.49771562 | AG44: 20.90391177 | AH44: 0.6720761299 | AI44: 0.5861219752 | AJ44: -4.393083106 | AK44: -3.207883205
A45: Consenso Panel FUNCAS | B45: 2.594101542 | C45: 2.586831734 | F45: 2.87810651 | G45: 2.3 | H45: 0.6254221115 | I45: 0.6679647085 | J45: 4.771754356 | K45: 4.946141058 | L45: 7.154316555 | M45: 6.527533035 | N45: 2.780121351 | O45: 3.753792501 | P45: 2.725722801 | Q45: 2.57022614 | R45: 5.369121643 | S45: 5.736732051 | T45: 6.327344998 | U45: 6.069789308 | V45: 2.087371789 | W45: 2.558112051 | X45: -0.4535336633 | Y45: 1.203165917 | AB45: 0.1657500349 | AC45: 0.861445801 | AD45: 2.290260719 | AE45: 2.199409117 | AF45: 22.49771562 | AG45: 20.90391177 | AH45: 0.6720761299 | AI45: 0.5861219752 | AJ45: -4.393083106 | AK45: -3.207883205
A46: Realizado (BVAR inercial) | B46: 3.331635861 | C46: 3.005892703 | D46: 2.544868859 | E46: 2.631292117 | F46: 3.727025678 | G46: 3.135203251 | H46: 1.115138877 | I46: 2.334775332 | J46: 8.968166415 | K46: 5.745753407 | R46: 5.855574955 | S46: 4.74465976 | T46: 8.884672733 | U46: 6.517443037 | AJ46: -4.733757408 | AK46: -2.864742088 | AL46: -1.695390027 | AM46: -0.9465538911

Sheet Panelistas
A3: Analistas Financieros Internacionales (AFI) | B3: 1 | C3: FUNCAS
A4: Banco Bilbao Vizcaya Argentaria (BBVA) | B4: 2 | C4: FUNCAS
A5: Bankia | B5: 3 | C5: FUNCAS
A6: CatalunyaCaixa | B6: 4 | C6: FUNCAS
A7: Cemex | B7: 5 | C7: FUNCAS
A8: Centro de Estudios Economía de Madrid (CEEM-URJC) | B8: 6 | C8: FUNCAS
A9: Centro de Predicción Económica (CEPREDE-UAM) | B9: 7 | C9: FUNCAS
A10: CEOE | B10: 8 | C10: FUNCAS
A11: ESADE | B11: 9 | C11: FUNCAS
A12: Fundación Cajas de Ahorros (FUNCAS) | B12: 10 | C12: FUNCAS
A13: Instituto Complutense de Análisis Económico (ICAE-UCM) | B13: 11 | C13: FUNCAS
A14: Instituto de Estudios Económicos (IEE) | B14: 12 | C14: FUNCAS
A15: Instituto de Macroeconomía y Finanzas (Universidad CJC) | B15: 13 | C15: FUNCAS
A16: Instituto Flores de Lemus (IFL-UC3M) | B16: 14 | C16: FUNCAS
A17: Intermoney | B17: 15 | C17: FUNCAS
A18: La Caixa | B18: 16 | C18: FUNCAS
A19: Repsol | B19: 17 | C19: FUNCAS
A20: Santander | B20: 18 | C20: FUNCAS
A21: Solchaga Recio & asociados | B21: 19 | C21: FUNCAS
A22: Caja Madrid | B22: 20 | C22: FUNCAS
A23: Barclays | B23: 21 | C23: CONSENSUS
A24: Oxford Economics | B24: 22 | C24: CONSENSUS
A25: Bank of America - Merrill | B25: 23 | C25: CONSENSUS
A26: Goldman Sachs | B26: 24 | C26: CONSENSUS
A27: HSBC | B27: 25 | C27: CONSENSUS
A28: UBS | B28: 26 | C28: CONSENSUS
A29: EIU | B29: 27 | C29: CONSENSUS
A30: Citigroup | B30: 28 | C30: CONSENSUS
A31: IHS Economics | B31: 29 | C31: CONSENSUS
A32: ING Financial Markets | B32: 30 | C32: CONSENSUS
